Cogmind - Beta 13 @@@ ROGUE MODE // 2024.04.28 @ 21:10:05 Player: szymekc Result: Destroyed by MAIN.C with Improved Heavy Machine Gun Performance ------------- Evolutions (9) 4500 Regions Visited (37) 7400 Robots Destroyed (760) 3800 Value Destroyed (38985) 38985 Prototype IDs (87) 1740 Alien Tech Used (3) 600 Bonus (35749) 35749 TOTAL SCORE: 92774 Bonus ------- Triggered High Security 500 High Alert Combat Kills 12797 Follower Combat Kills 1494 Entered Garrisons 200 Network Hubs Disabled 200 Aligned with FarCom 300 Met Data Miner 300 Destroyed Z-Imprinter 1000 Triggered Deep Caves Wall 500 Exposed GOLEM Chamber 500 Acquired ECA 300 Met Warlord at Base 500 MAIN.C Attacked Warlord 500 Warlord Defense Kills 1608 Met R17 at Cetus 500 Found Hidden Lab 3000 Met R17 at Research 2000 Scanned by Researcher 500 Destroyed MAIN.C Guards 500 Met MAIN.C 5000 Destroyed MAIN.C Shell 5000 Friendly Fire -1450 Cogmind --------- Core Integrity 0/1600 Matter 248/300 Energy 51/100 System Corruption 44% Temperature Hot (214) Movement Core (1350) Ox26 Location -1/Command Parts ------- > --- POWER (3) -------- (None) > --- PROPULSION (6) --- (None) > --- UTILITY (12) ----- Huge Storage Unit Graphene Brace Deep Network Scanner > --- WEAPON (4) ------- (None) > --- INVENTORY (25) --- Matter Compressor (250) Long-range Terrain Scanner Quantum Capacitor Compact HERF Cannon Plasma Cutter Peak State ------------ > --- POWER ------------ Improved Quantum Reactor Vortex Chain Reactor > --- PROPULSION ------- Biometal Heavy Treads Advanced Heavy Siege Treads Advanced Heavy Siege Treads > --- UTILITY ---------- Advanced Cooling System Experimental Coolant Injector Experimental Coolant Injector Huge Storage Unit Assembled Combat Suite Quantum Capacitor Advanced Transmission Jammer Improved Utility Shielding Centrium Medium Armor Plating Advanced Force Field Deep Network Scanner > --- WEAPON ----------- Multirail Multirail Multirail Graviton Cannon > --- INVENTORY -------- Quantum Reactor Reinforced Quantum Reactor Biometal Heavy Treads Advanced Heavy Siege Treads Advanced Cooling System Experimental Energy Well Matter Compressor Long-range Terrain Scanner Advanced Kinecellerator Advanced Weapon Cycler Propulsion Shielding Graphene Brace Long-range Tractor Beam Transdimensional Reconstructor Compact HERF Cannon Firepult Heavy Linear Accelerator Neutron Missile Launcher Plasma Cutter [Rating: 235] Favorites ----------- Power Assembled Flux Generator Engine Heavy Ion Engine Power Core Neutrino Core Reactor Assembled Flux Generator Propulsion Assembled Alloy Leg Treads Armored Treads Leg Assembled Alloy Leg Wheel Wheel Hover Unit Cooled Antigrav System Utility Huge Storage Unit Device GOLEM Unit Storage Huge Storage Unit Processor Advanced Terrain Scan Processor Hackware Advanced System Shield Protection Centrium Medium Armor Plating Weapon Assembled Focal Cannon Energy Gun Quantum Rifle Energy Cannon Assembled Focal Cannon Ballistic Gun Light Assault Rifle Ballistic Cannon Light Cannon Launcher Rocket Launcher Special Weapon Guided Remote Datajack Impact Weapon Heavy Flail Piercing Weapon Makeshift Spear Build | -11 -10 -10 -9 -9 -9 -8 -8 -8 -8 -8 -7 -7 -7 -7 -7 -6 -6 -6 -6 -6 -5 -5 -5 -5 -5 -4 -4 -4 -4 -4 -4 -3 -3 -3 -2 -1 -1 ------- Run | Yrd Mat Min Mat Min Exi Min Mat Gar Mat Sto Fac Low Low Zio Dee Pro Fac Low Low Dat Pro Fac Upp Upp War Pro Fac Ext Cet Arc Hub Res Arm Lab Res Acc Com Slots Evolved 18 | . . . 2 . . . 2 . . . 2 . . . . . 2 . . . . 2 . . . . 2 . . . . 2 . . 2 2 . Power 2 | . . . . . . . . . . . . . . . . . 1 . . . . . . . . . . . . . . . . . 1 . . Propulsion 4 | . . . 2 . . . . . . . . . . . . . . . . . . . . . . . . . . . . 2 . . . . . Utility 10 | . . . . . . . 2 . . . 2 . . . . . 1 . . . . 2 . . . . 2 . . . . . . . 1 . . Weapon 2 | . . . . . . . . . . . . . . . . . . . . . . . . . . . . . . . . . . . . 2 . Parts Attached 621 | 2 10 13 22 8 . 3 8 32 10 12 34 20 6 8 42 11 29 4 7 . 10 9 16 4 20 10 17 19 14 11 10 35 16 10 24 82 33 Power 32 | . 2 2 1 . . 1 1 4 . . 2 1 1 1 4 1 . . . . . . . . 1 . . . . 1 . . 4 . 1 2 2 Engine 8 | . 1 2 1 . . . 1 1 . . . . . 1 1 . . . . . . . . . . . . . . . . . . . . . . Core 7 | . 1 . . . . 1 . 3 . . 2 . . . . . . . . . . . . . . . . . . . . . . . . . . Reactor 17 | . . . . . . . . . . . . 1 1 . 3 1 . . . . . . . . 1 . . . . 1 . . 4 . 1 2 2 Propulsion 75 | 2 2 2 11 1 . . 1 7 2 3 3 . . . 5 . 3 . 2 . 1 2 1 . 7 1 1 . 1 . 4 1 4 . 3 3 2 Treads 45 | 2 1 2 4 1 . . 1 7 2 3 3 . . . 3 . . . . . . . . . . . . . . . 4 1 3 . 3 3 2 Leg 28 | . . . 7 . . . . . . . . . . . 2 . 3 . 2 . 1 2 1 . 7 1 1 . 1 . . . . . . . . Wheel 1 | . 1 . . . . . . . . . . . . . . . . . . . . . . . . . . . . . . . . . . . . Hover 1 | . . . . . . . . . . . . . . . . . . . . . . . . . . . . . . . . . 1 . . . . Flight . | . . . . . . . . . . . . . . . . . . . . . . . . . . . . . . . . . . . . . . Utility 322 | . 4 2 1 . . 1 4 5 2 2 11 10 . 4 13 3 25 4 5 . 9 7 12 4 12 8 15 11 8 9 4 27 2 5 17 59 17 Device 208 | . 1 2 1 . . 1 . 2 . 1 6 5 . 2 10 1 15 4 4 . 8 4 10 4 10 5 11 6 . 6 2 13 2 2 16 42 12 Storage 6 | . 2 . . . . . . . . . . . . . . . 1 . . . . . . . . . . . . . . . . . . 1 2 Processor 17 | . . . . . . . 1 . . 1 3 . . . . . 2 . . . 1 . . . 1 1 . 2 . 1 . 2 . . 1 1 . Hackware 14 | . . . . . . . 1 . . . 2 . . . . . 1 . . . . 1 . . . . 2 . . . . 3 . 1 . 3 . Protection 77 | . 1 . . . . . 2 3 2 . . 5 . 2 3 2 6 . 1 . . 2 2 . 1 2 2 3 8 2 2 9 . 2 . 12 3 Artifact . | . . . . . . . . . . . . . . . . . . . . . . . . . . . . . . . . . . . . . . Weapon 192 | . 2 7 9 7 . 1 2 16 6 7 18 9 5 3 20 7 1 . . . . . 3 . . 1 1 8 5 1 2 7 6 5 3 18 12 Energy Gun 17 | . 1 . 5 . . . . . 2 . 3 1 . . 1 . . . . . . . . . . . . . . 1 1 1 . 1 . . . Energy Cannon 81 | . . . 1 4 . 1 1 6 3 4 11 3 3 . 11 2 . . . . . . 1 . . . . 2 3 . 1 2 4 3 2 10 3 Ballistic Gun 10 | . . 4 1 . . . . 1 . . . . . . . . . . . . . . . . . . . . . . . . . . . 1 3 Ballistic Cannon 22 | . 1 3 2 1 . . . 3 . . 2 2 . . 1 2 . . . . . . . . . . . . . . . 2 . . . 1 2 Launcher 40 | . . . . 2 . . 1 5 1 3 1 1 2 1 3 2 1 . . . . . 2 . . 1 1 4 2 . . 1 2 . . 1 3 Special Weapon 11 | . . . . . . . . . . . . 1 . . . . . . . . . . . . . . . 2 . . . . . 1 1 5 1 Impact Weapon 5 | . . . . . . . . 1 . . 1 1 . 1 . . . . . . . . . . . . . . . . . 1 . . . . . Slashing Weapon . | . . . . . . . . . . . . . . . . . . . . . . . . . . . . . . . . . . . . . . Piercing Weapon 6 | . . . . . . . . . . . . . . 1 4 1 . . . . . . . . . . . . . . . . . . . . . Special Melee Weapon . | . . . . . . . . . . . . . . . . . . . . . . . . . . . . . . . . . . . . . . Unidentified Prototypes 38 | . . . . . . . 1 . . . 1 . . 1 3 . 1 . . . . 1 . . 4 2 . . 1 . 1 6 3 7 . 3 3 Corrupted Parts 8 | . . . . . . . . . . . . . . . . 1 . . . . . . . . . 2 . . . 1 4 . . . . . . System Corruption 39 | . . . . . . . . . . . . . . . . 6 . . . . . . . . . 8 . . . 7 18 . . . . . . Parts Lost 86 | . 1 5 5 3 . . 1 11 2 . 1 . . . 3 1 2 . . . 1 1 2 . 8 . . 4 . . 2 . . . . 1 32 Power 9 | . . 2 . . . . 1 1 . . . . . . . . . . . . . . . . 1 . . . . . . . . . . . 4 Propulsion 19 | . . 2 3 1 . . . 7 . . . . . . 1 . . . . . . . . . . . . . . . . . . . . . 5 Utility 36 | . 1 1 . . . . . 1 1 . . . . . 2 1 1 . . . 1 . 1 . 6 . . 3 . . 1 . . . . 1 15 Weapon 22 | . . . 2 2 . . . 2 1 . 1 . . . . . 1 . . . . 1 1 . 1 . . 1 . . 1 . . . . . 8 Highest Loss Streak 31 | . 1 5 3 3 . . 1 3 1 . 1 . . . 2 1 2 . . . 1 1 2 . 3 . . 2 . . 2 . . . . 1 31 To Critical Strikes . | . . . . . . . . . . . . . . . . . . . . . . . . . . . . . . . . . . . . . . Average Slot Usage (%) 89 | . 93 99 99 99 100 100 99 97 89 99 96 92 91 89 84 92 85 85 85 84 85 88 87 87 87 86 88 90 92 93 93 76 70 72 77 79 77 Engine 1 | . 4 13 11 11 11 3 5 3 . . . . . . 1 7 . . . . . . . . . . . . . . . . . . . . . Core 1 | . 9 . . . . 7 3 5 9 9 7 2 . . . . . . . . . . . . . . . . . . . . . . . . . Reactor 4 | . . . . . . . . . . . . 4 6 6 5 . 6 5 6 6 6 5 5 5 5 5 5 5 5 5 5 4 3 4 8 7 7 Treads 11 | . 24 19 17 44 44 44 35 34 27 35 27 23 23 23 19 . . . . . . . . . . . . . . . . 14 14 14 12 12 11 Leg 12 | . . . 26 . . . . . . . . . . . 3 30 26 25 26 26 26 23 23 23 23 22 21 20 21 21 20 . . . . . . Device 16 | . 3 5 11 11 11 11 9 9 9 9 14 15 15 13 9 11 12 19 14 13 12 12 16 16 17 23 22 23 11 20 25 20 23 21 25 26 30 Storage 8 | . 14 14 11 11 11 11 9 9 9 9 7 7 7 7 7 11 13 13 13 13 13 11 11 11 11 11 10 10 10 5 5 4 4 4 4 4 4 Processor 5 | . . . . . . . 9 9 8 9 15 8 7 7 7 7 6 6 6 6 10 11 11 11 9 . . 3 5 4 5 4 4 4 4 3 . Hackware 1 | . . . . . . . 2 . . . 6 7 7 5 . . . . . . . 4 2 . . . 8 1 . . . 2 . . 4 4 4 Protection 8 | . 4 8 . . . . 6 8 9 9 1 5 7 8 13 5 5 . 4 6 2 4 2 5 5 10 10 14 28 25 21 15 9 11 8 5 5 Energy Gun 1 | . 10 5 12 1 . . . . . . 1 . . . 1 . . . . . . . . . . . . . . 4 4 2 . . . . . Energy Cannon 9 | . . . . 17 22 22 17 6 17 17 6 6 6 5 6 7 12 13 12 11 12 11 10 11 10 10 9 9 7 5 4 4 7 8 7 11 9 Ballistic Cannon 1 | . 9 11 8 1 . . . 5 . . . 4 7 4 . 1 . . . . . . . . . . . . . . . 1 . . . . . Naked Turns . | . . . . . . . . . . . . . . . . . . . . . . . . . . . . . . . . . . . . . . Heaviest Build 214 | 12 94 98 97 100 100 100 108 115 115 115 117 133 115 127 136 132 165 162 159 155 157 161 163 165 177 183 182 194 194 191 185 188 191 187 202 214 213 Greatest Support 240 | 40 40 40 80 80 80 80 80 117 117 117 130 130 130 130 130 116 116 116 116 116 116 116 116 116 120 140 140 140 120 120 160 240 240 235 240 240 235 Greatest Overweight (x) 59 | . 9 9 1 1 1 1 1 2 . 2 1 1 . . 2 1 1 1 1 1 1 1 1 1 1 1 1 1 1 59 1 . 1 . . . 26 Average Overweight (x) 1 | . 1 6 1 1 1 1 1 . . . . . . . . . 1 1 1 1 1 1 1 1 1 1 1 1 1 25 1 . . . . . . Largest Inventory Capacity 25 | 8 25 25 25 25 25 25 25 25 25 25 25 25 25 25 25 25 25 25 25 25 25 25 25 25 25 25 25 25 25 25 25 25 25 25 25 25 25 Average Capacity 24 | 8 12 25 25 25 25 25 25 25 25 25 25 25 25 25 25 25 25 25 25 25 25 25 25 25 25 25 25 25 25 25 25 25 25 25 25 25 25 Most Carried 25 | 6 13 25 25 25 25 25 25 25 25 25 25 25 25 25 25 25 25 25 25 25 25 25 25 25 25 25 25 25 25 25 25 25 25 25 25 25 25 Average Carried 24 | 6 8 19 24 23 24 24 24 23 24 24 24 24 24 24 24 24 24 24 24 25 24 24 22 24 24 24 24 24 24 24 24 23 24 24 24 24 24 Final Capacity 25 | 8 25 25 25 25 25 25 25 25 25 25 25 25 25 25 25 25 25 25 25 25 25 25 25 25 25 25 25 25 25 25 25 25 25 25 25 25 25 Final Carried 25 | 6 13 25 25 24 25 25 25 25 25 25 25 25 25 25 25 24 25 24 25 25 24 25 24 25 25 25 25 25 25 25 21 25 25 25 25 25 6 Class Distribution -------------------- 25% | Mutant 24% | Golem 12% | Scavenger-Skirmisher 8% | Scavenger-Golem 8% | Scavenger-Mutant 5% | Hacker-Skirmisher 3% | Hacker-Golem Dominant Class ---------------- Mutant | -10/Materials Mutant | -10/Mines Scavenger-Mutant | -9/Materials Mutant | -9/Mines Mutant | -9/Exiles Mutant | -8/Mines Mutant | -8/Materials Scavenger-Mutant | -8/Garrison Mutant | -8/Materials Scavenger-Mutant | -8/Storage Scavenger-Assassin | -7/Factory Mutant | -7/Lower Caves Mutant | -7/Lower Caves Mutant | -7/Zion Mutant | -7/Deep Caves Golem | -6/Proximity Caves Scavenger-Golem | -6/Factory Golem | -6/Lower Caves Golem | -6/Lower Caves Golem | -6/Data Miner Golem | -5/Proximity Caves Golem | -5/Factory Golem | -5/Upper Caves Golem | -5/Upper Caves Golem | -5/Warlord Golem | -4/Proximity Caves Hacker-Golem | -4/Factory Commander-Mutant | -4/Extension Scavenger-Mutant | -4/Cetus Scavenger-Skirmisher | -4/Archives Scavenger-Skirmisher | -4/Hub_04(d) Scavenger-Skirmisher | -3/Research Mutant | -3/Armory Mutant | -3/Lab Hacker-Skirmisher | -2/Research Hacker-Skirmisher | -1/Access Hacker-Gunner | -1/Command Resources | -11 -10 -10 -9 -9 -9 -8 -8 -8 -8 -8 -7 -7 -7 -7 -7 -6 -6 -6 -6 -6 -5 -5 -5 -5 -5 -4 -4 -4 -4 -4 -4 -3 -3 -3 -2 -1 -1 ----------- Run | Yrd Mat Min Mat Min Exi Min Mat Gar Mat Sto Fac Low Low Zio Dee Pro Fac Low Low Dat Pro Fac Upp Upp War Pro Fac Ext Cet Arc Hub Res Arm Lab Res Acc Com Matter Collected 9557 | 200 248 280 433 174 . 30 80 670 90 246 528 285 188 70 476 378 580 40 50 . 85 195 242 40 170 112 262 548 211 128 21 362 321 . 244 749 821 Remotely 766 | . . . . . . . . . . . . . . . . . . . . . . . . . . . 62 . . . . 137 . . . 142 425 Salvage Created 43944 | . 488 156 1248 316 . 43 509 854 870 2027 1244 765 157 . 668 688 2114 284 863 . 1029 1692 454 660 596 558 2509 3988 739 720 1178 1020 554 . 1598 6821 6534 Parts 1946 | . 34 8 97 12 . 2 22 52 52 91 68 19 11 . 5 22 126 13 37 . 38 94 16 22 27 25 131 135 27 41 58 42 17 . 77 343 182 Haulers Intercepted 23 | . 2 . 5 . . . 1 . 2 3 1 . . . . . 1 . . . . 1 . . . . 1 . . . 1 1 . . . 4 . Recyclers Shooed 6 | . 2 . . . . . . . . 1 . . . . . . 1 . . . . . . . . . . . . . . 1 . . . 1 . Parts Field Recycled . | . . . . . . . . . . . . . . . . . . . . . . . . . . . . . . . . . . . . . . Retrieved Matter . | . . . . . . . . . . . . . . . . . . . . . . . . . . . . . . . . . . . . . . Parts Self-Destructed 177 | . . . . . . . . . . . . 12 2 . . 12 . 12 37 . 44 . 11 22 . 25 . . . . . . . . . . . Prevented 17 | . . . . . . . . . . . . 8 . . . 8 . 1 . . . . . . . . . . . . . . . . . . . Kills | -11 -10 -10 -9 -9 -9 -8 -8 -8 -8 -8 -7 -7 -7 -7 -7 -6 -6 -6 -6 -6 -5 -5 -5 -5 -5 -4 -4 -4 -4 -4 -4 -3 -3 -3 -2 -1 -1 ------- Run | Yrd Mat Min Mat Min Exi Min Mat Gar Mat Sto Fac Low Low Zio Dee Pro Fac Low Low Dat Pro Fac Upp Upp War Pro Fac Ext Cet Arc Hub Res Arm Lab Res Acc Com Combat Hostiles Destroyed 671 | . 9 7 27 6 . 1 9 33 11 34 20 11 5 . 45 10 32 4 15 . 19 26 14 12 10 16 32 50 8 4 14 11 8 . 16 64 88 Melee 3 | . . . . . . . . . . . . . . . 2 1 . . . . . . . . . . . . . . . . . . . . . Guns 46 | . 8 4 19 . . . . 2 1 . 3 . . . 1 . . . . . . . . . . . . . . . 6 1 . . . . 1 Cannons 337 | . 1 3 7 4 . 1 7 15 6 15 11 5 . . 1 6 30 4 15 . 19 26 2 12 10 11 22 24 . . 7 4 3 . 10 40 16 AOE 170 | . . . 1 2 . . . 16 4 15 3 5 5 . 38 3 2 . . . . . 12 . . 5 10 16 . . . . 2 . . 1 30 Classes Destroyed 33 | . 5 2 2 2 . 1 . 2 3 2 1 . 1 . 3 . 1 . 2 . 1 . . . 2 1 . 1 . . . . . . . . 1 Worker 23 | . . . 1 2 . . 1 . 1 2 . . . . . . 2 . . . . 1 . . . . 2 2 . . 1 . . . 2 1 5 Builder 13 | . . . . . . . . . . . 1 . . . . . . . . . . 1 . . . . 2 4 . . 1 . . . 2 2 . Hauler 23 | . 2 . 5 . . . 1 . 2 3 1 . . . . . 1 . . . . 1 . . . . 1 . . . 1 1 . . . 4 . Recycler 15 | . . . . 4 . . . . 1 2 . . . . . . 1 . . . . . . . . . 1 3 . . . . . . 1 1 1 Minesweeper 1 | . . . . . . . . . . . . . . . . . . . 1 . . . . . . . . . . . . . . . . . . Mechanic 6 | . . . . . . . . . . 1 . . . . . . . . . . . . . . . . . 3 . . . . . . . . 2 Operator 25 | . 2 . . . . . . . . 1 1 . . . . . 2 . . . . 3 . . . . 1 . . 9 1 . . . . 4 1 Drone 1 | . . . . . . . . . . . . . . . . . . . . . . . . . . 1 . . . . . . . . . . . Watcher 44 | . 3 . 3 . . . 1 . 2 1 6 . . . . . 5 . . . . 3 . . . . 4 . 2 . 1 . . . 3 10 . Swarmer 82 | . 3 3 9 1 . . . 11 . 3 3 . 3 . . 3 6 . 3 . 6 4 6 3 . 9 . . . . . . . . . . 6 Cutter 2 | . . . . . . . . 2 . . . . . . . . . . . . . . . . . . . . . . . . . . . . . Saboteur 10 | . . . . . . . . . . . . . . . . . 1 . . . . . . . . . 1 2 . . . . 1 . . . 5 Grunt 238 | . 6 2 11 . . . 7 11 3 19 8 6 . . . 6 10 2 9 . 11 7 6 7 5 6 8 27 . . 4 5 4 . . 14 34 Brawler 24 | . . . 1 . . . 1 . 1 2 . 1 . . . 1 1 . . . . . . . . . 1 4 . . . . . . . 2 9 Duelist 20 | . . . . . . . . . 3 1 . 2 1 . . . . . . . . . . . . . 2 4 . . . . . . . 1 6 Protector 7 | . . . . . . . . . . 1 . . . . . . . . . . . . . . . . . 1 . . . . . . . 1 4 Sentry 65 | . . 2 6 . . . 1 7 1 8 3 1 . . . . 4 1 1 . 1 2 1 2 . . 3 6 . 4 3 1 1 . 1 4 1 Demolisher 2 | . . . . . . . . . . . . . . . . . . . . . . . . . . . . 2 . . . . . . . . . Specialist 4 | . . . . . . . . . 2 . . . . . . . . . . . . . . . . . . . . . . . 2 . . . . Hunter 38 | . . . . . . 1 . . . . 1 1 . . . . 4 . 1 . . 4 1 . 1 . 1 2 . . 2 3 . . 6 8 2 Programmer 93 | . . . . . . . . 2 . . 5 . . . . . 5 1 . . 1 9 . . . . 16 2 . . 4 1 . . 9 28 10 Heavy 5 | . . . . . . . . . 1 . . . . . . . 1 . . . . . . . . . . . . . 1 . . . . 2 . Behemoth 6 | . . . . . . . . . . . . . . . . . . . 1 . . . . . . . . . . . . . . . . 5 . Cetus Guard 8 | . . . . . . . . . . . . . . . . . . . . . . . . . . . . . 8 . . . . . . . . M Guard 2 | . . . . . . . . . . . . . . . . . . . . . . . . . . . . . . . . . . . . . 2 Combat Programmer 2 | . . . . . . . . . . . . . . . . . . . . . . . . . . . . . . . . . . . . . 2 Investigator 1 | . . . . . . . . . . . . . . . . . . . . . . . . . . . . . . . . . . . . . 1 Striker 6 | . . . . . . . . . . . . . . . . . . . . . . . . . 2 . . . . . . 1 . . . . 3 Executioner 3 | . . . . . . . . . . . . . . . . . . . . . . . . . 2 . . . . . . . . . . . 1 Zionite 1 | . . 1 . . . . . . . . . . . . . . . . . . . . . . . . . . . . . . . . . . . Z-Light 1 | . . . . . . . . . . . . . . . 1 . . . . . . . . . . . . . . . . . . . . . . Decomposer 1 | . . . . . . . . . . . . . . . . 1 . . . . . . . . . . . . . . . . . . . . . Packrat 1 | . . . . . . . . . . . . . . . . . . . . . . . 1 . . . . . . . . . . . . . . Tinkerer 1 | . . . . . . . . . . . . . . . . . . . . . 1 . . . . . . . . . . . . . . . . Thief 2 | . . . . . . . . . . . . . 2 . . . . . . . . . . . . . . . . . . . . . . . . Assembler 2 | . . . . . . . . . . . . . . . 2 . . . . . . . . . . . . . . . . . . . . . . Assembled 46 | . . . . 5 . . . . . . . . . . 41 . . . . . . . . . . . . . . . . . . . . . . Golem 3 | . . . . . . . . . . . . . . . 3 . . . . . . . . . . . . . . . . . . . . . . Savage 2 | . . . . . . . . . . . . . 1 . . . . . . . . . . . . . . 1 . . . . . . . . . Wizard 2 | . . . . . . . . . . . . . . . . . . . . . . . . . . . . . . . . . . . . . 2 Best Kill Streak 42 | . 2 2 5 2 . 1 3 6 6 15 6 6 3 . 42 3 6 3 5 . 7 5 13 7 5 5 13 20 5 7 6 4 4 . 4 8 22 Combat Bots Only 39 | . 2 2 4 2 . 1 3 6 4 12 3 6 3 . 39 3 6 3 5 . 7 5 13 7 5 5 10 14 4 2 3 4 4 . 4 7 18 Max Kills in Single Turn 24 | . 1 2 2 2 . 1 1 3 2 3 3 2 3 . 24 2 2 1 2 . 1 2 4 1 1 3 5 6 1 1 2 1 1 . 1 3 7 Gunslinging . | . . . . . . . . . . . . . . . . . . . . . . . . . . . . . . . . . . . . . . Exploded 24 | . . . 1 1 . . . 3 2 3 3 2 3 . 24 2 2 . . . . . 4 . . 3 4 4 . . . . 1 . . 1 7 Melee 1 | . . . . . . . . . . . . . . . 1 1 . . . . . . . . . . . . . . . . . . . . . Uniques/NPCs Destroyed 2 | . . . . . . . . . . . . . . . 1 . . . . . . . . . . . . . . . . . . . . . 1 Z-Imprinter (-7/Deep Caves) MAIN.C Shell (-1/Command) Combat | -11 -10 -10 -9 -9 -9 -8 -8 -8 -8 -8 -7 -7 -7 -7 -7 -6 -6 -6 -6 -6 -5 -5 -5 -5 -5 -4 -4 -4 -4 -4 -4 -3 -3 -3 -2 -1 -1 -------- Run | Yrd Mat Min Mat Min Exi Min Mat Gar Mat Sto Fac Low Low Zio Dee Pro Fac Low Low Dat Pro Fac Upp Upp War Pro Fac Ext Cet Arc Hub Res Arm Lab Res Acc Com Hostile Shots Fired 3229 | . 65 63 122 36 . 6 67 149 69 67 141 29 4 . 104 57 114 24 67 . 83 192 61 43 251 52 114 161 34 16 144 46 55 . 67 190 536 Missed 991 | . 20 14 26 2 . 2 20 41 20 23 57 6 2 . 30 22 38 6 13 . 23 62 10 15 68 10 38 73 15 6 60 22 29 . 19 59 140 Damage Taken 38086 | . 509 673 1136 1107 . 45 732 1702 854 699 1127 435 80 . 2021 643 1183 140 760 . 1066 1839 1061 291 2886 462 1035 1682 425 229 892 189 168 . 496 1780 9739 Core 4271 | . 79 96 138 102 . . . 190 56 74 200 39 30 . 148 152 72 24 54 . 243 303 77 41 303 34 32 80 . . 121 . 3 . . 55 1525 Absorbed by Shields 5651 | . . . . . . . . . . . . . . . 245 . 209 55 . . . . . 108 315 169 191 35 . . 696 207 133 . 442 1203 1643 Reduced by Siege Mode 1533 | . . . . . . . . . . . 12 8 . . 36 . . . . . . . . . . . . . . . . 17 13 . 50 183 1214 Redirected to Shielding 568 | . . . . . . . . . . . . . 8 . 221 . . . 27 . 48 . 82 . . . . . . . . . . . . 7 175 Ignored by Resistances 2523 | . . . . . . . . . . . . 25 . . . . . . . . . 230 . 128 582 132 258 350 86 47 322 84 76 . 192 11 . Regen/Repaired (Parts) 1312 | . . . . . . . . . . . 173 . . . . . 366 . . . . 381 . . 110 . 282 . . . . . . . . . . Core Remaining (%) 58 | 100 . 30 . . . 40 . . . 41 . . . . . 18 . . . . 53 . . . . 24 . . . . 79 . . 100 100 . . Volleys Fired 2265 | . 64 31 83 32 . 3 32 84 33 73 99 39 10 . 58 27 116 8 57 . 91 102 22 29 60 27 118 132 22 52 48 50 39 13 108 344 159 Largest 4 | . 2 2 2 2 . 2 2 2 2 2 2 2 1 . 1 2 2 2 2 . 2 2 2 2 2 2 2 2 1 1 2 2 1 1 1 2 4 Hottest 250 | . 100 100 131 136 . 148 140 140 130 130 225 138 81 . 250 117 50 50 50 . 50 50 250 50 50 50 71 113 88 88 250 182 120 120 120 250 250 Shots Fired 3094 | . 126 54 160 36 . 6 60 119 58 131 102 43 12 . 58 29 183 16 108 . 127 172 26 54 73 49 185 197 22 52 74 64 39 13 109 344 193 Gun 373 | . 112 25 109 1 . . . 5 6 . 14 1 . . 14 . . . . . . . . . . . . . . . 37 17 . . . . 32 Cannon 2553 | . 14 29 51 26 . 6 60 94 48 119 87 32 7 . 37 25 183 16 108 . 127 172 21 54 73 47 179 164 13 52 37 47 37 13 107 319 149 Launcher 123 | . . . . 9 . . . 20 4 12 1 5 5 . 7 4 . . . . . . 5 . . 2 6 20 9 . . . 2 . . . 12 Special 45 | . . . . . . . . . . . . 5 . . . . . . . . . . . . . . . 13 . . . . . . 2 25 . Kinetic 322 | . 105 47 62 1 . . . 35 . . 8 1 1 . . 3 . . . . . . . . . . . . . . . 5 . . . . 54 Thermal 2250 | . 21 7 49 26 . 6 60 64 48 119 50 16 . . 36 4 183 16 108 . 127 172 21 54 73 47 179 151 . 34 74 17 26 13 76 266 107 Explosive 71 | . . . . 9 . . . 20 . 1 1 . 5 . 7 2 . . . . . . 5 . . 2 . 5 . . . . 2 . . . 12 Electromagnetic 415 | . . . 49 . . . . . 10 11 43 21 6 . 15 20 . . . . . . . . . . 6 28 22 18 . 42 11 . 31 62 20 Robot Hit Streak 66 | . 9 6 15 3 . 3 8 11 12 23 9 13 3 . 13 6 11 4 15 . 10 22 14 8 22 15 26 37 5 11 26 18 11 . 9 59 66 Robot Miss Streak 7 | . 5 4 7 3 . 1 2 2 3 1 3 1 3 . 2 4 4 2 3 . 3 4 2 3 2 2 2 1 2 2 2 4 1 . 3 4 4 Penetration Max 1 | . . . . . . . . . . . . . . . . . . . . . . . . . . . . . . . . . . . . . 1 Secondary Targets 1 | . . 1 . . . . . . . . . . . . . . . . . . . . . . . . . . . . . . . . . . . Max Gunslinging Chain 1 | . . 1 . . . . . . . . . . . . . . . . . . . . . . . . . . . . . . . . . . . Capacitor 602 | . . . . . . . . . . . . . . . . . . . . . . . . . . . . . . . . 5 37 13 107 316 124 Shots Hit Robots 1770 | . 76 34 105 11 . 5 36 69 37 77 69 33 4 . 33 20 107 8 42 . 66 95 11 28 46 29 92 142 9 42 53 43 21 . 45 146 136 Core Hits 1420 | . 34 12 44 11 . 2 16 43 27 60 31 19 10 . 77 21 50 5 21 . 24 37 30 13 14 20 70 126 18 19 38 19 12 . 21 128 348 Critical Kills 15 | . . 1 . . . . 1 1 . . . . . . . . . . . . . . . . . . . . . . . . . . 1 9 2 Critical Parts Destroyed 3 | . 1 . . . . . . 1 . . . . . . . . . . . . . . . . . . . . . . . . . . . . 1 Critical Strikes 34 | . 2 1 4 . . . 1 3 1 . 2 . . . 1 . . . . . . . . . . . . . . . . 2 . . 1 11 5 Burn 1 | . 1 . . . . . . . . . . . . . . . . . . . . . . . . . . . . . . . . . . . . Meltdown 13 | . . . . . . . 1 . . . . . . . . . . . . . . . . . . . . . . . . . . . 1 9 2 Destroy 5 | . 1 1 . . . . . 2 . . . . . . . . . . . . . . . . . . . . . . . . . . . . 1 Blast 7 | . . . 3 . . . . 1 . . 2 . . . . . . . . . . . . . . . . . . . . . . . . . 1 Corrupt 8 | . . . 1 . . . . . 1 . . . . . 1 . . . . . . . . . . . . . . . . 2 . . . 2 1 Melee Attacks 86 | . . . . . . . . 6 . . 46 . . 1 27 6 . . . . . . . . . . . . . . . . . . . . . Impact 53 | . . . . . . . . 6 . . 46 . . 1 . . . . . . . . . . . . . . . . . . . . . . . Slashing . | . . . . . . . . . . . . . . . . . . . . . . . . . . . . . . . . . . . . . . Piercing 33 | . . . . . . . . . . . . . . . 27 6 . . . . . . . . . . . . . . . . . . . . . Sneak Attacks 3 | . . . . . . . . . . . 2 . . . . 1 . . . . . . . . . . . . . . . . . . . . . Combat Hostiles . | . . . . . . . . . . . . . . . . . . . . . . . . . . . . . . . . . . . . . . Follow-up Attacks . | . . . . . . . . . . . . . . . . . . . . . . . . . . . . . . . . . . . . . . Damage Inflicted 106277 | . 790 573 2175 652 . 120 864 3082 1494 4033 2839 1333 833 . 4213 1064 5402 432 2147 . 2769 4848 1906 1107 2134 1848 6636 9820 1160 1753 2452 1692 1079 . 2872 13711 18444 Guns 5864 | . 667 129 1527 22 . . . 82 107 . 297 15 . . 141 . . . . . . . . . . . . . . . 790 416 . . . . 1671 Cannons 67534 | . 121 431 533 226 . 120 857 1802 847 2134 1932 718 120 . 445 484 4996 432 2093 . 2769 4763 339 1107 2134 1266 4848 5332 356 1753 1274 1210 821 . 2805 12900 5566 Explosions 31367 | . . . 88 355 . . . 1198 540 1893 319 600 713 . 3367 323 367 . 54 . . 85 1567 . . 582 1711 4446 804 . 312 . 258 . . 599 11186 Melee 808 | . . . . . . . . . . . 291 . . . 260 257 . . . . . . . . . . . . . . . . . . . . . Ramming 616 | . 2 13 27 49 . . 7 . . 6 . . . . . . 39 . . . . . . . . . 77 42 . . 76 66 . . 67 124 21 Kinetic 5485 | . 594 534 608 . . . . 765 . . 214 35 . . . 69 . . . . . . . . . . . . . . . . . . . . 2666 Thermal 69410 | . 194 26 890 248 . 120 857 1119 994 2532 1008 526 . . 544 71 5363 432 2147 . 2769 4763 395 1107 2134 1266 5972 5601 . 1280 2303 416 419 . 1639 11374 10901 Explosive 14266 | . . . . 355 . . . 1198 . 220 222 . 713 . 3041 168 . . . . . 85 1511 . . 582 . 1948 . . . . 258 . . . 3965 Electromagnetic 15692 | . . . 650 . . . . . 500 1275 1104 772 120 . 368 499 . . . . . . . . . . 587 2229 1160 473 73 1210 402 . 1166 2213 891 Impact 291 | . . . . . . . . . . . 291 . . . . . . . . . . . . . . . . . . . . . . . . . . Slashing . | . . . . . . . . . . . . . . . . . . . . . . . . . . . . . . . . . . . . . . Piercing 517 | . . . . . . . . . . . . . . . 260 257 . . . . . . . . . . . . . . . . . . . . . Highest Corruption 44 | . . . . . . . . . . 2 1 2 2 2 3 9 2 . . . . 10 10 . . 8 3 3 3 7 20 1 1 1 6 19 44 Average Corruption 4 | . . . . . . . . . . 2 1 1 2 2 3 3 1 . . . . 6 7 . . 6 1 3 3 3 3 1 1 1 4 9 18 Corruption Purged 30 | . . . . . . . . . . . . . . . . . 3 . . . . . 10 . . . . . . 10 . . . . . 7 . Corruption Blocked 47 | . . . . . . . . . . . . . . . . . 8 . . . . . . . . . . . . . . . 6 . . 3 30 Effects 484 | . . . . . . . . . . 17 12 29 21 2 8 14 5 . . . . 54 11 . . 1 30 34 8 3 1 20 4 2 29 108 71 Message Errors 120 | . . . . . . . . . . 5 2 9 3 . 2 4 2 . . . . 9 5 . . 1 9 7 2 . 1 6 1 . 6 31 15 Matter Fused 104 | . . . . . . . . . . 5 2 3 6 . 4 4 . . . . . 11 2 . . . 7 9 1 2 . 4 . 1 7 23 13 Heat Flow Errors 55 | . . . . . . . . . . 2 1 2 2 2 1 1 2 . . . . 5 1 . . . 3 8 . . . 2 . . 4 11 8 Energy Discharges 60 | . . . . . . . . . . 1 3 4 6 . 1 1 1 . . . . 6 . . . . 3 2 3 . . 3 . 1 5 14 6 Parts Rejected 4 | . . . . . . . . . . . . . . . . . . . . . . . . . . . . 1 . . . 1 . . . 1 1 Parts Fused 4 | . . . . . . . . . . . . . . . . . . . . . . 1 . . . . . 1 . . . 1 . . . . 1 Data Loss (minor) 42 | . . . . . . . . . . 1 1 2 2 . . 1 . . . . . 10 1 . . . 3 2 . 1 . 1 . . 4 11 2 Data Loss (major) 31 | . . . . . . . . . . 1 . 6 . . . 2 . . . . . 5 1 . . . 1 1 1 . . . 1 . 1 5 6 Misfires 30 | . . . . . . . . . . 1 2 2 2 . . 1 . . . . . 2 1 . . . 4 1 . . . 2 1 . 1 4 6 Alerts 11 | . . . . . . . . . . . 1 1 . . . . . . . . . 3 . . . . . . 1 . . . . . 1 2 2 Misdirections 3 | . . . . . . . . . . . . . . . . . . . . . . 1 . . . . . . . . . . . . . 1 1 Weapon Failures 20 | . . . . . . . . . . 1 . . . . . . . . . . . 1 . . . . . 2 . . . . 1 . . 5 10 Overload Shots 4 | . . . . . . . . . . . 3 . . . 1 . . . . . . . . . . . . . . . . . . . . . . Overflow Damage 4037 | . . . 7 60 . . 36 42 . 52 63 21 18 . 270 . 374 20 71 . 221 460 95 33 62 116 287 217 47 153 85 1 6 . 118 817 285 Projectiles 3305 | . . . . . . . 36 12 . 9 63 14 . . . . 342 20 67 . 221 460 . 33 62 101 285 181 47 153 79 1 . . 85 814 220 Explosions 652 | . . . 7 60 . . . 30 . 43 . 7 18 . 238 . 23 . 4 . . . 95 . . 15 2 36 . . 6 . 6 . . 3 59 Melee 80 | . . . . . . . . . . . . . . . 32 . 9 . . . . . . . . . . . . . . . . . 33 . 6 Knockbacks 29 | . 1 2 7 1 . . . 8 . . . . . . . . . . . . . . . . . . 1 . . . . . . . 1 . 8 Impact 4 | . . . 1 1 . . . . . . . . . . . . . . . . . . . . . . 1 . . . . . . . 1 . . Kinetic 25 | . 1 2 6 . . . . 8 . . . . . . . . . . . . . . . . . . . . . . . . . . . . 8 Secondary . | . . . . . . . . . . . . . . . . . . . . . . . . . . . . . . . . . . . . . . Self-Inflicted Damage 1194 | . . 6 89 . . . . 61 . 9 37 16 67 . 154 38 . . . . . . 43 . . . . . . . 85 . . . . . 589 Shots 32 | . . . 2 . . . . 4 . 1 1 1 2 . 2 2 . . . . . . 2 . . . . . . . 1 . . . . . 14 Rammed 23 | . 1 1 . 5 . . 1 . . 1 . . . . . . . . . . . . . . . . . . . . . 4 . . 1 8 1 Targets Rammed 44 | . 1 1 1 8 . . 2 . . 2 . . . . . . 1 . . . . . . . . . 6 1 . . 6 4 . . 2 8 1 Kicked 15 | . . . 1 . . . . . . . . . . . . . 1 . . . . . . . . . 6 1 . . 6 . . . . . . Crushed 6 | . . . . 3 . . 1 . . 1 . . . . . . . . . . . . . . . . . . . . . . . . 1 . . Highest Temperature 456 | . 162 242 54 81 . 117 225 213 214 255 212 123 218 228 298 302 236 5 14 . 53 278 381 . 178 17 221 245 . . 276 175 287 201 350 340 456 Average Temperature 79 | . 37 117 17 28 . 61 62 68 82 70 62 37 105 113 75 102 71 5 6 . 25 136 157 . 89 9 60 57 . . 126 23 100 91 98 85 94 Received Heat Transfer 6375 | . 210 354 339 60 . . 396 585 108 360 459 135 . . 219 120 161 42 279 . 351 135 162 120 374 109 130 486 . 36 121 14 39 . 8 28 435 Effects 24 | . . 3 . . . . . . 3 . . . . . . 4 1 . . . . 1 1 . . . . 1 . . . . 2 . 3 4 1 Energy Bleed 10 | . . 1 . . . . . . . . . . . . . . 1 . . . . 1 1 . . . . 1 . . . . 1 . 3 1 . Interference 13 | . . 2 . . . . . . 3 . . . . . . 4 . . . . . . . . . . . . . . . . 1 . . 3 . Matter Decay 1 | . . . . . . . . . . . . . . . . . . . . . . . . . . . . . . . . . . . . . 1 Siege Activations 51 | . . . . . . . . . 1 . 2 3 1 . 2 . . . . . . . . . . . . . . . . 6 2 . 9 14 11 Total Turns 674 | . . . . . . . . . 29 . 33 26 36 . 40 . . . . . . . . . . . . . . . . 72 22 . 68 187 161 Longest Duration 57 | . . . . . . . . . 29 . 28 12 36 . 29 . . . . . . . . . . . . . . . . 30 15 . 13 54 57 Robots Corrupted 64 | . . . . . . . . . . 4 3 1 1 . 3 . . . . . . . . . . . . 10 10 4 . 6 3 . 5 9 5 Combat Hostiles 59 | . . . . . . . . . . 4 3 1 . . 3 . . . . . . . . . . . . 10 8 4 . 6 3 . 5 8 4 Parts Fried 132 | . . . 3 . . . . . 3 7 7 7 1 . . 2 4 . . . . . . . . . 3 22 17 3 . 9 8 . 9 20 7 Impact Corruptions 6 | . . . . . . . . . . . . . . . . . 1 . . . . . . . . . . . . . . . . . 3 1 1 Robots Melted 58 | . . . . . . . 2 . . . . . . . . . . . . . . . . . . . . . . . 1 . . . 1 15 39 Combat Hostiles 56 | . . . . . . . 2 . . . . . . . . . . . . . . . . . . . . . . . 1 . . . 1 15 37 Parts Melted 232 | . 1 . 1 . . 1 4 4 3 4 3 1 . . 3 . 4 . 1 . 2 4 1 . . . 7 1 . 2 12 . 1 . 8 48 116 Heat Transferred 71130 | . 518 74 1532 444 . 224 1529 1747 1347 3136 1236 731 . . 1596 87 2875 200 1230 . 1450 2450 630 600 1200 700 3149 2862 . 675 3052 481 370 . 999 10081 23925 Parts Sabotaged . | . . . . . . . . . . . . . . . . . . . . . . . . . . . . . . . . . . . . . . Parts Stolen 1 | . . . . . . . . . . . . . 1 . . . . . . . . . . . . . . . . . . . . . . . . Parts Stripped . | . . . . . . . . . . . . . . . . . . . . . . . . . . . . . . . . . . . . . . Power Chain Reactions 22 | . . . 2 . . . . . 2 2 1 3 . . . 1 . . . . . . . . . . 5 2 . . . . . . . . 4 Alert | -11 -10 -10 -9 -9 -9 -8 -8 -8 -8 -8 -7 -7 -7 -7 -7 -6 -6 -6 -6 -6 -5 -5 -5 -5 -5 -4 -4 -4 -4 -4 -4 -3 -3 -3 -2 -1 -1 ------- Run | Yrd Mat Min Mat Min Exi Min Mat Gar Mat Sto Fac Low Low Zio Dee Pro Fac Low Low Dat Pro Fac Upp Upp War Pro Fac Ext Cet Arc Hub Res Arm Lab Res Acc Com Peak Influence 3059 | . 257 92 431 249 . 134 202 1056 672 1225 491 . . . . . 1012 . . . . 495 . . . . 999 1929 1272 636 701 533 388 . 387 1372 3059 Initial 1080 | . . 16 . 143 . . . 28 514 278 345 . . . . . . . . . . . . . . . 150 489 1080 428 . 367 92 . . 182 792 Average 326 | . 91 17 257 45 . 23 85 606 577 733 240 . . . . . 287 . . . . 196 . . . . 302 997 1200 84 124 324 229 . 159 506 1649 Maximum Alert Level 5 | . 1 . 2 1 . . 1 3 2 4 2 . . . . . 3 . . . . 2 . . . . 3 5 4 2 3 2 1 . 1 4 5 Low Security (%) 49 | 100 89 100 23 91 . 100 94 16 . . 27 . . . . . 64 . . . . 49 . . . . 53 . . 84 80 5 41 . 54 15 . Level 1 22 | . 10 . 71 8 . . 5 2 . 13 70 . . . . . 2 . . . . 39 . . . . 21 . . 5 10 75 58 . 45 34 . Level 2 12 | . . . 4 . . . . 39 100 30 2 . . . . . 12 . . . . 11 . . . . 5 34 . 10 8 19 . . . 23 . Level 3 10 | . . . . . . . . 41 . 43 . . . . . . 20 . . . . . . . . . 19 37 9 . . . . . . 20 21 Level 4 2 | . . . . . . . . . . 13 . . . . . . . . . . . . . . . . . 9 90 . . . . . . 6 27 Level 5 1 | . . . . . . . . . . . . . . . . . . . . . . . . . . . . 18 . . . . . . . . 20 High Security . | . . . . . . . . . . . . . . . . . . . . . . . . . . . . . . . . . . . . . 30 Max Security . | . . . . . . . . . . . . . . . . . . . . . . . . . . . . . . . . . . . . . . Squads Dispatched 138 | . 1 . 3 1 . . 3 . 3 5 12 . . . . . 15 . . . 1 9 . . . . 12 10 . . 4 8 3 . 6 15 27 Investigation 29 | . . . 3 1 . . 1 . . 2 5 . . . . . 5 . . . 1 2 . . . . 3 . . . 1 3 . . . 2 . Extermination 38 | . . . . . . . . . . . 5 . . . . . 5 . . . . 5 . . . . 7 . . . 1 . 1 . 5 7 2 Reinforcement 30 | . 1 . . . . . 1 . 2 1 2 . . . . . 4 . . . . 2 . . . . . . . . 2 5 2 . 1 3 4 Assault 40 | . . . . . . . . . 1 2 . . . . . . 1 . . . . . . . . . 2 10 . . . . . . . 3 21 Garrison 1 | . . . . . . . 1 . . . . . . . . . . . . . . . . . . . . . . . . . . . . . . Intercept . | . . . . . . . . . . . . . . . . . . . . . . . . . . . . . . . . . . . . . . Searches Triggered . | . . . . . . . . . . . . . . . . . . . . . . . . . . . . . . . . . . . . . . Construction Impeded 1 | . . . . . . . . . . . . . . . . . . . . . . 1 . . . . . . . . . . . . . . . Haulers Reinforced 4 | . . . . . . . . . . . . . . . . . 2 . . . . . . . . . . . . . . 2 . . . . . Active Scanning Responses . | . . . . . . . . . . . . . . . . . . . . . . . . . . . . . . . . . . . . . . Cargo Convoy Interrupts 1 | . . . . . . . . . . . . . . . . . 1 . . . . . . . . . . . . . . . . . . . . Stealth | -11 -10 -10 -9 -9 -9 -8 -8 -8 -8 -8 -7 -7 -7 -7 -7 -6 -6 -6 -6 -6 -5 -5 -5 -5 -5 -4 -4 -4 -4 -4 -4 -3 -3 -3 -2 -1 -1 --------- Run | Yrd Mat Min Mat Min Exi Min Mat Gar Mat Sto Fac Low Low Zio Dee Pro Fac Low Low Dat Pro Fac Upp Upp War Pro Fac Ext Cet Arc Hub Res Arm Lab Res Acc Com Distress Signals 38 | . . . 5 1 . . 2 . 2 . 4 . . . . . . . . . . . . . . . 3 2 3 . 3 6 2 . 3 . 2 Communications Jammed 135 | . . . . . . . . . . . . . . . . . . . . . . . . . . 3 18 5 . . 33 . . . 3 23 50 Distress Signals 128 | . . . . . . . . . . . . . . . . . . . . . . . . . . 2 17 5 . . 33 . . . 3 18 50 Times Spotted 906 | . 17 10 38 9 . 4 20 28 21 35 36 11 6 . 46 14 42 4 13 . 19 32 14 10 23 15 49 82 7 17 21 27 13 . 26 66 131 Peak Tracking Total 37 | . 3 4 4 2 . 4 5 4 6 11 5 4 4 . 37 5 5 3 5 . 7 6 13 7 11 2 9 11 5 1 5 5 3 . 4 9 27 Tactical Retreats 37 | . 1 . 2 . . 1 . 2 . . 4 . . . 1 2 1 . . . . 1 . . 3 . 2 4 1 . 3 . . . 1 3 5 Traps | -11 -10 -10 -9 -9 -9 -8 -8 -8 -8 -8 -7 -7 -7 -7 -7 -6 -6 -6 -6 -6 -5 -5 -5 -5 -5 -4 -4 -4 -4 -4 -4 -3 -3 -3 -2 -1 -1 ------- Run | Yrd Mat Min Mat Min Exi Min Mat Gar Mat Sto Fac Low Low Zio Dee Pro Fac Low Low Dat Pro Fac Upp Upp War Pro Fac Ext Cet Arc Hub Res Arm Lab Res Acc Com Traps Triggered 27 | . . . . . . . . 10 . 2 1 . . . . . 1 . . . . 2 . . . . . 2 . . . . . . 4 3 2 Indirectly . | . . . . . . . . . . . . . . . . . . . . . . . . . . . . . . . . . . . . . . Trap Hack Attempts . | . . . . . . . . . . . . . . . . . . . . . . . . . . . . . . . . . . . . . . Triggered . | . . . . . . . . . . . . . . . . . . . . . . . . . . . . . . . . . . . . . . Disarmed 6 | . 6 . . . . . . . . . . . . . . . . . . . . . . . . . . . . . . . . . . . . Reprogrammed 4 | . . . 4 . . . . . . . . . . . . . . . . . . . . . . . . . . . . . . . . . . Reused . | . . . . . . . . . . . . . . . . . . . . . . . . . . . . . . . . . . . . . . Traps Extracted . | . . . . . . . . . . . . . . . . . . . . . . . . . . . . . . . . . . . . . . Installed 10 | . . . . . . . . . . . . . . . . . . . 10 . . . . . . . . . . . . . . . . . . Triggered 25 | . . . . . . . . . . . . 2 . . . . 1 . . . . . . . 17 1 . 3 . . . . . . . . 1 Machines | -11 -10 -10 -9 -9 -9 -8 -8 -8 -8 -8 -7 -7 -7 -7 -7 -6 -6 -6 -6 -6 -5 -5 -5 -5 -5 -4 -4 -4 -4 -4 -4 -3 -3 -3 -2 -1 -1 ---------- Run | Yrd Mat Min Mat Min Exi Min Mat Gar Mat Sto Fac Low Low Zio Dee Pro Fac Low Low Dat Pro Fac Upp Upp War Pro Fac Ext Cet Arc Hub Res Arm Lab Res Acc Com Machines Disabled 97 | . 2 1 4 . . . 2 4 . 4 3 1 . . 3 . 10 . 4 . 1 13 3 . . . 6 5 . 3 8 1 5 4 2 4 4 Max in Single Turn 9 | . 1 1 1 . . . 1 2 . 2 1 1 . . 1 . 4 . 2 . 1 9 2 . . . 2 1 . 1 6 1 1 1 1 1 1 Garrison Access 12 | . . . . . . . . . . 1 1 . . . . . 1 . . . . . . . . . 1 . . . . 2 . . 2 4 . Network Hub 1 | . . . . . . . . . . . . . . . . . . . . . . . . . . . . . . . 1 . . . . . . Energy Cycler 2 | . . . . . . . . . . . . . . . . . . . . . . . . . . . . 2 . . . . . . . . . Machines Repaired . | . . . . . . . . . . . . . . . . . . . . . . . . . . . . . . . . . . . . . . Machines Dismantled 1 | . . . . . . . . . . . . . . . . . . . . . . . . . . . . . . . . . . . . . 1 Machines Sabotaged . | . . . . . . . . . . . . . . . . . . . . . . . . . . . . . . . . . . . . . . Overloaded Fab Kills . | . . . . . . . . . . . . . . . . . . . . . . . . . . . . . . . . . . . . . . Hacking | -11 -10 -10 -9 -9 -9 -8 -8 -8 -8 -8 -7 -7 -7 -7 -7 -6 -6 -6 -6 -6 -5 -5 -5 -5 -5 -4 -4 -4 -4 -4 -4 -3 -3 -3 -2 -1 -1 --------- Run | Yrd Mat Min Mat Min Exi Min Mat Gar Mat Sto Fac Low Low Zio Dee Pro Fac Low Low Dat Pro Fac Upp Upp War Pro Fac Ext Cet Arc Hub Res Arm Lab Res Acc Com Machines Accessed 167 | . 5 . 10 1 2 . 6 3 4 8 16 2 1 . . . 20 1 2 4 1 17 1 . 1 . 13 6 3 . 3 4 4 1 7 16 5 Terminals 100 | . 4 . 8 . . . 4 3 3 6 8 . . . . . 12 . . . 1 9 1 . . . 7 5 3 . 3 1 3 . 4 10 5 Fabricators 13 | . . . . . . . . . . . 3 . . . . . 2 . . . . 2 . . . . 3 . . . . 1 1 . . 1 . Repair Stations 8 | . . . . . . . 1 . . 1 1 . . . . . 1 . . . . 3 . . . . 1 . . . . . . . . . . Recycling Units 10 | . 1 . 2 . . . . . . . 2 . . . . . 3 . . . . 1 . . . . . 1 . . . . . . . . . Scanalyzers 7 | . . . . . . . . . 1 . . . . . . . 1 . . . . 1 . . . . 1 . . . . 1 . . 1 1 . Garrison Access 14 | . . . . . . . 1 . . 1 2 . . . . . 1 . . . . 1 . . . . 1 . . . . 1 . . 2 4 . Total Hacks 476 | . 15 . 32 1 4 . 11 4 6 25 55 2 1 . . . 57 1 2 28 3 48 5 . 1 . 49 19 8 . 5 12 8 1 15 47 11 Successful 252 | . 8 . 19 1 4 . 3 3 2 11 22 2 1 . . . 31 1 2 28 3 22 5 . 1 . 27 7 4 . 3 7 2 1 8 20 4 Failed 223 | . 7 . 12 . . . 8 1 4 14 33 . . . . . 26 . . . . 26 . . . . 22 12 4 . 2 5 6 . 7 27 7 Catastrophic 49 | . 2 . 1 . . . 2 . 2 3 10 . . . . . 2 . . . . 3 . . . . 6 6 . . 1 2 3 . 1 4 1 Database Lockouts 1 | . . . 1 . . . . . . . . . . . . . . . . . . . . . . . . . . . . . . . . . . Manual 165 | . 6 . 19 . 1 . 1 . 4 12 21 . . 6 . . 21 . . . . 10 . . 1 . 15 18 . . 5 3 . . 4 13 5 Terminals 291 | . 11 . 29 . . . 8 4 4 18 31 . . . . . 31 . . . 3 26 5 . . . 27 17 8 . 5 3 6 . 10 34 11 Fabricators 39 | . . . . . . . . . . . 10 . . . . . 8 . . . . 4 . . . . 9 . . . . 3 2 . . 3 . Repair Stations 26 | . . . . . . . 2 . . 4 2 . . . . . 4 . . . . 9 . . . . 5 . . . . . . . . . . Recycling Units 29 | . 4 . 3 . . . . . . . 7 . . . . . 10 . . . . 3 . . . . . 2 . . . . . . . . . Scanalyzers 28 | . . . . . . . . . 2 . . . . . . . 3 . . . . 4 . . . . 7 . . . . 5 . . 3 4 . Garrison Access 22 | . . . . . . . 1 . . 3 5 . . . . . 1 . . . . 2 . . . . 1 . . . . 1 . . 2 6 . Terminal Hacks 143 | . 5 . 14 1 4 . . 3 1 6 12 2 1 . . . 8 1 2 28 3 8 5 . 1 . 13 2 4 . . 1 2 1 1 10 4 Record 30 | . . . . . 3 . . . . . . 1 . . . . 1 1 . 11 3 . 5 . . . . . 4 . . . . 1 . . . Part Schematic 15 | . . . . . . . . . . . 1 . . . . . 3 . . 10 . . . . . . . . . . . . . . . 1 . Robot Schematic 4 | . . . . . . . . . . . . . . . . . . . . 4 . . . . . . . . . . . . . . . . . Robot Analysis 5 | . 1 . 4 . . . . . . . . . . . . . . . . . . . . . . . . . . . . . . . . . . Prototype ID Bank 8 | . 2 . 2 . . . . . . . 1 . . . . . . . . 3 . . . . . . . . . . . . . . . . . Open Door 10 | . . . . 1 . . . 1 . 1 . 1 1 . . . . . 2 . . . . . 1 . . . . . . . 1 . . 1 . Level Access Points 2 | . . . . . . . . . . 1 . . . . . . . . . . . 1 . . . . . . . . . . . . . . . Branch Access Points 5 | . . . . . . . . . 1 . 1 . . . . . . . . . . . . . . . 1 . . . . 1 . . . 1 . Emergency Access Points 4 | . . . . . . . . 1 . . . . . . . . . . . . . . . . . . 2 . . . . . . . . . 1 Machine Index 1 | . . . . . . . . . . . . . . . . . . . . . . . . . . . . . . . . . . . . . 1 Terminal Index 3 | . . . . . . . . . . . 1 . . . . . . . . . . 1 . . . . 1 . . . . . . . . . . Fabricator Index 1 | . . . . . . . . . . . . . . . . . . . . . . . . . . . 1 . . . . . . . . . . Alert Level 6 | . . . . . . . . . . . 2 . . . . . 1 . . . . 1 . . . . 1 . . . . . . . . 1 . Unreport Threat 14 | . . . . . . . . . . 3 3 . . . . . . . . . . 2 . . . . 1 1 . . . . . . . 4 . Locate Traps 14 | . 1 . 2 . . . . . . 1 1 . . . . . 1 . . . . 3 . . . . 2 . . . . . 1 . 1 . 1 Disarm Traps 1 | . 1 . . . . . . . . . . . . . . . . . . . . . . . . . . . . . . . . . . . . Reprogram Traps 1 | . . . 1 . . . . . . . . . . . . . . . . . . . . . . . . . . . . . . . . . . Recall Investigation 2 | . . . . . . . . . . . 1 . . . . . . . . . . . . . . . . . . . . . . . . 1 . Hauler Manifests 3 | . . . 2 . . . . . . . . . . . . . 1 . . . . . . . . . . . . . . . . . . . . Registered Components 2 | . . . 1 . . . . . . . . . . . . . 1 . . . . . . . . . . . . . . . . . . . . Zone Layout 9 | . . . 2 . . . . . . . 1 . . . . . . . . . . . . . . . 4 1 . . . . . . . 1 . Patrol Navigation 1 | . . . . . . . . 1 . . . . . . . . . . . . . . . . . . . . . . . . . . . . . Derelict Proto ID Bank 1 | . . . . . 1 . . . . . . . . . . . . . . . . . . . . . . . . . . . . . . . . Disengage Seal 1 | . . . . . . . . . . . . . . . . . . . . . . . . . . . . . . . . . . . . . 1 Fabricator Hacks 17 | . . . . . . . . . . . 3 . . . . . 4 . . . . 1 . . . . 5 . . . . 2 . . . 2 . Network Status 1 | . . . . . . . . . . . . . . . . . . . . . . 1 . . . . . . . . . . . . . . . Load Schematic 8 | . . . . . . . . . . . 2 . . . . . 2 . . . . . . . . . 2 . . . . 1 . . . 1 . Build 8 | . . . . . . . . . . . 1 . . . . . 2 . . . . . . . . . 3 . . . . 1 . . . 1 . Repair Station Hacks 19 | . . . . . . . 2 . . 2 2 . . . . . 4 . . . . 7 . . . . 2 . . . . . . . . . . Scan Component 11 | . . . . . . . 1 . . 2 1 . . . . . 2 . . . . 4 . . . . 1 . . . . . . . . . . Repair 8 | . . . . . . . 1 . . . 1 . . . . . 2 . . . . 3 . . . . 1 . . . . . . . . . . Recycling Unit Hacks 8 | . 1 . 1 . . . . . . . 2 . . . . . 3 . . . . 1 . . . . . . . . . . . . . . . Retrieve Components 8 | . 1 . 1 . . . . . . . 2 . . . . . 3 . . . . 1 . . . . . . . . . . . . . . . Scanalyzer 15 | . . . . . . . . . 1 . . . . . . . 3 . . . . 2 . . . . 3 . . . . 3 . . 2 1 . Insert Component 9 | . . . . . . . . . 1 . . . . . . . 1 . . . . 1 . . . . 2 . . . . 2 . . 1 1 . Analyze 6 | . . . . . . . . . . . . . . . . . 2 . . . . 1 . . . . 1 . . . . 1 . . 1 . . Garrison Access Hacks 9 | . . . . . . . 1 . . . . . . . . . 1 . . . . . . . . . 1 . . . . 1 . . 2 3 . Unlock Access 1 | . . . . . . . 1 . . . . . . . . . . . . . . . . . . . . . . . . . . . . . . Seal Access 8 | . . . . . . . . . . . . . . . . . 1 . . . . . . . . . 1 . . . . 1 . . 2 3 . Unauthorized Hacks 41 | . 2 . 4 . . . . . . 3 3 . . . . . 8 . . . . 3 . . . . 3 5 . . 3 . . . 3 4 . Terminals 26 | . . . 2 . . . . . . 2 1 . . . . . 5 . . . . 2 . . . . 1 4 . . 3 . . . 3 3 . Track 1 | . . . . . . . . . . . . . . . . . . . . . . 1 . . . . . . . . . . . . . . . Assimilate 5 | . . . . . . . . . . . . . . . . . 3 . . . . . . . . . . . . . . . . . 2 . . Botnet 14 | . . . 2 . . . . . . 2 1 . . . . . 2 . . . . . . . . . 1 2 . . 1 . . . 1 2 . Disrupt 3 | . . . . . . . . . . . . . . . . . . . . . . 1 . . . . . 1 . . 1 . . . . . . Operators 2 | . . . . . . . . . . . . . . . . . . . . . . . . . . . . 1 . . . . . . . 1 . Sabotage 1 | . . . . . . . . . . . . . . . . . . . . . . . . . . . . . . . 1 . . . . . . Fabricators 3 | . . . . . . . . . . . . . . . . . 1 . . . . . . . . . 2 . . . . . . . . . . Prioritize 3 | . . . . . . . . . . . . . . . . . 1 . . . . . . . . . 2 . . . . . . . . . . Repair Stations . | . . . . . . . . . . . . . . . . . . . . . . . . . . . . . . . . . . . . . . Recycling Units 9 | . 2 . 2 . . . . . . . 1 . . . . . 2 . . . . 1 . . . . . 1 . . . . . . . . . Reject 1 | . 1 . . . . . . . . . . . . . . . . . . . . . . . . . . . . . . . . . . . . Mask 5 | . 1 . . . . . . . . . . . . . . . 2 . . . . 1 . . . . . 1 . . . . . . . . . Tunnel 3 | . . . 2 . . . . . . . 1 . . . . . . . . . . . . . . . . . . . . . . . . . . Scanalyzers . | . . . . . . . . . . . . . . . . . . . . . . . . . . . . . . . . . . . . . . Garrison Access 3 | . . . . . . . . . . 1 1 . . . . . . . . . . . . . . . . . . . . . . . . 1 . Jam 3 | . . . . . . . . . . 1 1 . . . . . . . . . . . . . . . . . . . . . . . . 1 . Data Cores Recovered 6 | . . . . . . . . . . . . . . . . . . . . . . 1 . . . . . . . . . . . . . 4 1 Used . | . . . . . . . . . . . . . . . . . . . . . . . . . . . . . . . . . . . . . . Hacking Detections 127 | . 5 . 7 . . . 4 . 3 7 14 . . . . . 17 . . . 1 17 1 . . . 12 6 2 . 2 3 3 . 5 14 4 Full Trace Events 21 | . . . 1 . . . 1 . . 1 3 . . . . . 5 . . . 1 2 1 . . . 3 . . . . 2 . . . 1 . Feedback Events . | . . . . . . . . . . . . . . . . . . . . . . . . . . . . . . . . . . . . . . Feedback Blocked . | . . . . . . . . . . . . . . . . . . . . . . . . . . . . . . . . . . . . . . Robot Schematics Acquired 8 | . . . . . . . . . . . . . . 4 . . . . . 4 . . . . . . . . . . . . . . . . . Robots Built . | . . . . . . . . . . . . . . . . . . . . . . . . . . . . . . . . . . . . . . Authchips . | . . . . . . . . . . . . . . . . . . . . . . . . . . . . . . . . . . . . . . Time . | . . . . . . . . . . . . . . . . . . . . . . . . . . . . . . . . . . . . . . Total Robot Build Rating . | . . . . . . . . . . . . . . . . . . . . . . . . . . . . . . . . . . . . . . Part Schematics Acquired 33 | . . . . . . . . . . . 1 . . 14 . . 4 . . 10 . 1 . . . . . . . . . 1 . . 1 1 . Parts Built 12 | . . . . . . . . . . . 2 . . . . . 2 . . . . . . . . . 4 . . . . 2 . . . 2 . Authchips . | . . . . . . . . . . . . . . . . . . . . . . . . . . . . . . . . . . . . . . Time 544 | . . . . . . . . . . . 95 . . . . . 201 . . . . . . . . . 166 . . . . 58 . . . 24 . Total Part Build Rating 64 | . . . . . . . . . . . 10 . . . . . 13 . . . . . . . . . 21 . . . . 14 . . . 6 . Parts Repaired 7 | . . . . . . . . . . . 1 . . . . . 2 . . . . 3 . . . . 1 . . . . . . . . . . Time 574 | . . . . . . . 38 . . . 78 . . . . . 100 . . . . 222 . . . . 136 . . . . . . . . . . Parts Recycled . | . . . . . . . . . . . . . . . . . . . . . . . . . . . . . . . . . . . . . . Recycled Matter . | . . . . . . . . . . . . . . . . . . . . . . . . . . . . . . . . . . . . . . Retrieved Matter . | . . . . . . . . . . . . . . . . . . . . . . . . . . . . . . . . . . . . . . Retrieved Components 41 | . 9 . 10 . . . . . . . 10 . . . . . 11 . . . . 1 . . . . . . . . . . . . . . . Parts Scanalyzed 7 | . . . . . . . . . . . . . . . . . 1 . . . . 1 . . . . 1 . . . . 2 . . 1 1 . Part Schematics Acquired 4 | . . . . . . . . . . . . . . . . . 1 . . . . 1 . . . . . . . . . 1 . . 1 . . Parts Damaged 2 | . . . . . . . . . . . . . . . . . . . . . . . . . . . 1 . . . . . . . . 1 . Bothacking | -11 -10 -10 -9 -9 -9 -8 -8 -8 -8 -8 -7 -7 -7 -7 -7 -6 -6 -6 -6 -6 -5 -5 -5 -5 -5 -4 -4 -4 -4 -4 -4 -3 -3 -3 -2 -1 -1 ------------ Run | Yrd Mat Min Mat Min Exi Min Mat Gar Mat Sto Fac Low Low Zio Dee Pro Fac Low Low Dat Pro Fac Upp Upp War Pro Fac Ext Cet Arc Hub Res Arm Lab Res Acc Com Used RIF Installer . | . . . . . . . . . . . . . . . . . . . . . . . . . . . . . . . . . . . . . . Robots Hacked 3 | . . . . . . . . . . . . . . . . . . . . . . . . . . . . . . . . . . . 1 2 . Non-combat 1 | . . . . . . . . . . . . . . . . . . . . . . . . . . . . . . . . . . . . 1 . Combat 1 | . . . . . . . . . . . . . . . . . . . . . . . . . . . . . . . . . . . . 1 . Robot Hacks Applied 2 | . . . . . . . . . . . . . . . . . . . . . . . . . . . . . . . . . . . . 2 . parse_system 2 | . . . . . . . . . . . . . . . . . . . . . . . . . . . . . . . . . . . . 2 . Manual 2 | . . . . . . . . . . . . . . . . . . . . . . . . . . . . . . . . . . . 1 1 . Relay Couplers Released 1 | . . . . . . . . . . . . . . . . . . . . . . . . . . . . . . . . 1 . . . . . Machine Destruction 1 | . . . . . . . . . . . . . . . . . . . . . . . . . . . . . . . . 1 . . . . . Fabnet Peak Effective % . | . . . . . . . . . . . . . . . . . . . . . . . . . . . . . . . . . . . . . . Robots Rewired 26 | . . . . . . . . . . . . 2 . . . . . . . . . . . 2 . . . 19 . . . . 3 . . . . Allies Hacked 3 | . . . . . . . . . . . . . . . . . 1 . . . . . . . . . . 1 . . . . . . 1 . . Hacks Repelled . | . . . . . . . . . . . . . . . . . . . . . . . . . . . . . . . . . . . . . . Allies | -11 -10 -10 -9 -9 -9 -8 -8 -8 -8 -8 -7 -7 -7 -7 -7 -6 -6 -6 -6 -6 -5 -5 -5 -5 -5 -4 -4 -4 -4 -4 -4 -3 -3 -3 -2 -1 -1 -------- Run | Yrd Mat Min Mat Min Exi Min Mat Gar Mat Sto Fac Low Low Zio Dee Pro Fac Low Low Dat Pro Fac Upp Upp War Pro Fac Ext Cet Arc Hub Res Arm Lab Res Acc Com Total Allies 41 | . . 2 . 4 . . . 1 . . . 2 . 2 . . 3 . . . . . . 2 . . . 19 . . . . 3 . 2 1 . Largest Group 14 | . . 2 . 3 3 3 . 1 . . . 2 2 3 3 . 2 . . . . . . 2 2 . . 14 . . . . 2 . 1 1 . Highest-Rated Group 558 | . . 42 . 40 40 40 . 25 . . . 60 60 222 222 . 36 . . . . . . 79 79 . . 558 . . . . 136 . 148 219 . Highest-Rated Ally 219 | . . 31 . 31 16 16 . 25 . . . 30 30 96 96 . 26 . . . . . . 49 49 . . 51 . . . . 68 . 148 219 . Total Orders 3 | . . . . . . . . . . . . 2 . . . . . . . . . . . . . . 1 . . . . . . . . . . STAY 1 | . . . . . . . . . . . . 1 . . . . . . . . . . . . . . . . . . . . . . . . . FOLLOW 1 | . . . . . . . . . . . . 1 . . . . . . . . . . . . . . . . . . . . . . . . . RETURN 1 | . . . . . . . . . . . . . . . . . . . . . . . . . . . 1 . . . . . . . . . . Ally Attacks 228 | . . 7 . 12 . 19 . 1 . . . . 4 . 29 . . . . . . . . . 3 . . 113 . . . . 14 . 23 3 . Total Damage 6526 | . . 83 . 134 . 149 . 62 . . . . 111 . 1061 . . . . . . . . . 71 . . 3298 . . . . 1000 . 411 146 . Kills 52 | . . 2 . 3 . 4 . . . . . . 1 . 9 . . . . . . . . . 2 . . 23 . . . . 5 . 3 . . Allies Corrupted 8 | . . . . . . . . . . . . . . . . . . . . . . . . . . . . 6 . . . . . . 1 1 . Allies Melted . | . . . . . . . . . . . . . . . . . . . . . . . . . . . . . . . . . . . . . . Intel | -11 -10 -10 -9 -9 -9 -8 -8 -8 -8 -8 -7 -7 -7 -7 -7 -6 -6 -6 -6 -6 -5 -5 -5 -5 -5 -4 -4 -4 -4 -4 -4 -3 -3 -3 -2 -1 -1 ------- Run | Yrd Mat Min Mat Min Exi Min Mat Gar Mat Sto Fac Low Low Zio Dee Pro Fac Low Low Dat Pro Fac Upp Upp War Pro Fac Ext Cet Arc Hub Res Arm Lab Res Acc Com Robot Analysis Total 5 | . 1 . 4 . . . . . . . . . . . . . . . . . . . . . . . . . . . . . . . . . . Derelict Logs Recovered 14 | . . 1 . 1 . . . . . . . 1 1 . . 1 . 3 1 . 2 . . 2 . 1 . . . . . . . . . . . Drone Launches 1 | . . . . . . . . . . . . . . . . . . . . . . . . . . . 1 . . . . . . . . . . Drone Recoveries 1 | . . . . . . . . . . . . . . . . . . . . . . . . . . . 1 . . . . . . . . . . Exploration | -11 -10 -10 -9 -9 -9 -8 -8 -8 -8 -8 -7 -7 -7 -7 -7 -6 -6 -6 -6 -6 -5 -5 -5 -5 -5 -4 -4 -4 -4 -4 -4 -3 -3 -3 -2 -1 -1 ------------- Run | Yrd Mat Min Mat Min Exi Min Mat Gar Mat Sto Fac Low Low Zio Dee Pro Fac Low Low Dat Pro Fac Upp Upp War Pro Fac Ext Cet Arc Hub Res Arm Lab Res Acc Com Turns Passed 71212 | 3 1186 1790 2073 1903 742 1124 875 1975 595 1158 3618 2032 1236 1319 3165 891 4481 1968 2033 262 2661 2659 2338 1773 1313 2116 3198 2257 407 7591 599 1697 817 310 2052 3658 1337 Spaces Moved 27007 | 1 553 679 806 719 299 447 284 702 272 354 1353 982 715 805 1051 436 1955 797 952 83 851 1098 787 844 598 829 1354 750 188 532 226 885 414 147 969 1746 544 Core 230 | . . . . . . . . . . . . . . . . . . . . . . . . . . . . . . 229 . . . . . . 1 Treads 13521 | 1 431 201 304 719 299 447 284 702 272 354 1353 982 715 805 946 . . . . . . . . . . . . . . . 2 885 414 147 969 1746 543 Legs 12656 | . . . 502 . . . . . . . . . . . 105 436 1955 797 952 83 851 1098 787 844 598 829 1354 750 188 303 224 . . . . . . Wheels 600 | . 122 478 . . . . . . . . . . . . . . . . . . . . . . . . . . . . . . . . . . . Hover . | . . . . . . . . . . . . . . . . . . . . . . . . . . . . . . . . . . . . . . Flight . | . . . . . . . . . . . . . . . . . . . . . . . . . . . . . . . . . . . . . . Fastest Speed 135 | 160 160 215 195 247 247 247 245 163 163 166 160 160 160 160 135 135 183 185 183 185 185 185 185 185 175 175 175 175 175 180 180 160 155 155 155 155 155 Average Speed 208 | 160 172 246 215 247 247 247 246 234 163 245 212 168 160 160 167 135 184 185 184 185 185 185 185 185 183 175 175 175 176 1393 180 160 156 155 155 157 157 Slowest Speed 3000 | 160 215 320 250 250 247 247 247 325 166 330 247 240 160 160 260 185 185 185 185 185 185 185 185 185 185 175 175 175 180 3000 240 160 245 155 160 160 1350 Overloaded Moves . | . . . . . . . . . . . . . . . . . . . . . . . . . . . . . . . . . . . . . . Propulsion Burnouts . | . . . . . . . . . . . . . . . . . . . . . . . . . . . . . . . . . . . . . . Robots Hopped . | . . . . . . . . . . . . . . . . . . . . . . . . . . . . . . . . . . . . . . Cave-ins Triggered . | . . . . . . . . . . . . . . . . . . . . . . . . . . . . . . . . . . . . . . Exploration Rate (%) 67 | 2 86 100 85 98 71 97 29 70 30 72 49 94 89 79 82 69 54 87 95 69 86 32 95 97 87 96 30 83 68 85 31 25 37 95 25 54 19 Regions Visited 37 Branch Regions 25 Pre-discovered Areas 14 | . . 2 2 . 1 . . . . . 1 1 1 1 . 1 . 1 . 1 . . . 1 . 1 . . . . . . . . . . . Known Exits Taken 13 | . . . . . . . 1 . 1 1 1 . . . . 1 1 . . . 1 1 . . . 1 1 . . . . 1 . . 1 1 . Unknown Exits Taken 23 | 1 1 1 1 1 1 1 . . . . . 1 1 1 1 . . 1 1 1 . . 1 1 1 . . 1 1 1 1 . 1 1 . . . Scrap Searched 43 | . . 1 . 1 . 1 . . . . . 4 4 3 . 3 . 12 2 . 2 . 4 5 . 1 . . . . . . . . . . . Spaces Dug 556 | . . . . 24 . . 6 65 9 23 64 3 17 . 10 9 31 . 3 . 27 29 18 9 13 3 53 13 . 2 5 4 10 . 38 42 26 Terrain Destroyed 1858 | . . 3 17 97 . . 15 103 20 68 72 10 42 . 11 34 123 8 44 . 67 76 57 29 21 52 132 186 . 3 162 4 62 . 47 49 244 Melee 43 | . . . . . . . . . . . 38 . . . 5 . . . . . . . . . . . . . . . . . . . . . . Projectile 680 | . . 3 . 5 . . 15 5 14 40 8 1 2 . 5 1 64 8 30 . 67 60 12 29 21 19 75 47 . 3 13 4 12 . 47 49 21 AOE 1135 | . . . 17 92 . . . 98 6 28 26 9 40 . 1 33 59 . 14 . . 16 45 . . 33 57 139 . . 149 . 50 . . . 223 Terrain Rammed . | . . . . . . . . . . . . . . . . . . . . . . . . . . . . . . . . . . . . . . Walls Destroyed . | . . . . . . . . . . . . . . . . . . . . . . . . . . . . . . . . . . . . . . Machines Disabled . | . . . . . . . . . . . . . . . . . . . . . . . . . . . . . . . . . . . . . . Actions | -11 -10 -10 -9 -9 -9 -8 -8 -8 -8 -8 -7 -7 -7 -7 -7 -6 -6 -6 -6 -6 -5 -5 -5 -5 -5 -4 -4 -4 -4 -4 -4 -3 -3 -3 -2 -1 -1 --------- Run | Yrd Mat Min Mat Min Exi Min Mat Gar Mat Sto Fac Low Low Zio Dee Pro Fac Low Low Dat Pro Fac Upp Upp War Pro Fac Ext Cet Arc Hub Res Arm Lab Res Acc Com Total 39259 | 2 682 745 1008 800 304 465 399 899 364 508 1931 1317 797 837 2373 702 2646 1275 1115 193 1810 1559 1647 1002 743 1449 2003 1509 243 658 344 1109 584 229 1506 2596 906 Wait 8122 | . 33 4 23 17 2 6 67 26 40 58 362 272 55 5 1148 213 485 462 84 109 849 324 799 72 37 564 470 419 3 48 41 81 45 43 395 347 114 Move 26971 | . 552 678 805 718 298 446 283 701 271 353 1352 981 714 804 1050 435 1954 796 951 82 850 1097 786 843 597 828 1354 749 187 531 225 884 413 146 968 1745 544 Hop . | . . . . . . . . . . . . . . . . . . . . . . . . . . . . . . . . . . . . . . Pick Up 303 | . 11 16 37 9 2 2 3 18 5 3 18 2 6 9 11 3 17 . 1 . . 9 5 3 9 5 14 9 4 5 2 20 10 5 3 24 3 Fast Attach 155 | . 6 1 1 . . 1 2 3 . 1 5 1 1 1 10 . 9 . 2 . 1 4 1 2 8 2 4 6 5 7 3 19 12 7 4 24 2 Attach 132 | . . 4 11 3 . . 4 9 3 1 5 2 . 2 14 . 1 . . . . 3 3 . 5 3 1 6 . 4 7 4 . 1 4 10 22 Detach 36 | . . . 2 . . . 1 . . . . . . . 8 1 1 . . . . . 3 . 1 2 2 1 . 1 4 . . 1 1 2 5 Swap 337 | 2 4 8 10 5 . 2 2 20 7 10 24 17 5 5 18 11 19 4 5 . 9 2 12 2 7 5 12 7 9 . . 12 4 4 16 48 10 Drop 473 | . 11 2 35 8 2 5 3 16 5 5 20 3 6 10 22 6 38 5 5 2 8 13 16 4 19 13 23 19 13 10 8 35 21 9 5 44 4 Fire 2265 | . 64 31 83 32 . 3 32 84 33 73 99 39 10 . 58 27 116 8 57 . 91 102 22 29 60 27 118 132 22 52 48 50 39 13 108 344 159 Melee 86 | . . . . . . . . 6 . . 46 . . 1 27 6 . . . . . . . . . . . . . . . . . . . . . Ram 1 | . . 1 . . . . . . . . . . . . . . . . . . . . . . . . . . . . . . . . . . . Kick 14 | . . . 1 . . . . . . . . . . . . . 1 . . . . . . . . . 5 1 . . 6 . . . . . . Crush 28 | . 1 . . 8 . . 2 . . 2 . . . . . . . . . . . . . . . . . . . . . 4 . . 2 8 1 Escape Stasis 38 | . . . . . . . . 16 . 2 . . . . . . 5 . . . . 5 . . . . . 10 . . . . . . . . . Rewire 246 | . . . . . . . . . . . . . . . 7 . . . . . 2 . . 47 . . . 150 . . . . 40 . . . . Trap 10 | . . . . . . . . . . . . . . . . . . . 10 . . . . . . . . . . . . . . . . . . Miscellaneous 42 | . . . . . . . . . . . . . . . . . . . . . . . . . . . . . . . . . . . . . 42 Route ------- -11/Scrapyard -10/Materials (discovered 3 exits: *Mat x2 / [*Min]) -10/Mines (discovered 2 exits: *Mat x2) -9/Materials (discovered 5 exits: *Mat x3 / *Min x2) -9/Mines (discovered 4 exits: *Mat x2 / *Exi / *Zio) -9/Exiles (discovered 2 exits: [*Min x2]) -8/Mines (discovered 2 exits: *Mat x2) -8/Materials -8/Garrison (discovered 2 exits: *Mat x2) -8/Materials -8/Storage -7/Factory (discovered 4 exits: *Fac x2 / *Low x2) -7/Lower Caves -7/Lower Caves (discovered 2 exits: *Fac / *Zio) -7/Zion (discovered 2 exits: [*Dee] / [*Pro]) -7/Deep Caves -6/Proximity Caves -6/Factory (discovered 4 exits: *Fac x3 / *Low) -6/Lower Caves -6/Lower Caves (discovered 2 exits: *Fac / *Dat) -6/Data Miner -5/Proximity Caves -5/Factory (discovered 6 exits: *Fac x4 / *Upp x2) -5/Upper Caves -5/Upper Caves (discovered 2 exits: *Fac / *War) -5/Warlord -4/Proximity Caves -4/Factory (discovered 5 exits: *Res / Upp x2 / *Ext x2) -4/Extension (discovered 3 exits: *Res x2 / *Cet) -4/Cetus (discovered 2 exits: *Res / [*Arc]) -4/Archives (discovered 3 exits: *Res / *Hub x2) -4/Hub_04(d) (discovered 3 exits: *Res x3) -3/Research (discovered 3 exits: *Arm / Tes x2) -3/Armory -3/Lab -2/Research (discovered 2 exits: *Acc / [Qua]) -1/Access (discovered 2 exits: [*Sur] / *Com) -1/Command History --------- Turn | Location | Event 4 | -11/Scrapyard | Discovered new exit (range 0) 4 | -11/Scrapyard | Entered Materials 312 | -10/Materials | Build established: Mutant 580 | -10/Materials | Discovered new exit (range 14) 711 | -10/Materials | Discovered new exit (range 10) 925 | -10/Materials | Discovered new exit (range 11) 1190 | -10/Materials | Entered Mines 1645 | -10/Mines | Learned location of Storage (-8) 1951 | -10/Mines | A weapon hastily lodged in a ceiling crevice suddenly fell to the ground 2034 | -10/Mines | Discovered new exit (range 5) 2195 | -10/Mines | Discovered new exit (range 14) 2244 | -10/Mines | Joined a pair of Derelicts in attacking an 0b10 outpost 2295 | -10/Mines | Core integrity fell below 50% 2346 | -10/Mines | Lost 5 parts (2p2n1u) 2567 | -10/Mines | Build established: Scavenger-Mutant 2980 | -10/Mines | Entered Materials 2980 | -9/Materials | Evolved 2 slots: Propulsion x2 3483 | -9/Materials | Lost 3 parts (1n2w) 3577 | -9/Materials | Discovered new exit (range 16) 3747 | -9/Materials | Discovered new exit (range 15) 3795 | -9/Materials | Central database locked down 4329 | -9/Materials | Discovered new exit (range 4) 4512 | -9/Materials | Build established: Mutant 4681 | -9/Materials | Discovered new exit (range 14) 4771 | -9/Materials | Discovered new exit (range 16) 5053 | -9/Materials | Entered Mines 5056 | -9/Mines | Received a Mining Laser from a helpful Derelict 5130 | -9/Mines | Received a Rocket Launcher from a helpful Derelict 5354 | -9/Mines | Assembled infested the area 5403 | -9/Mines | Core integrity fell below 50% 5444 | -9/Mines | Lost 3 parts (1n2w) 5557 | -9/Mines | Discovered new exit (range 11) 5678 | -9/Mines | Discovered new exit (range 14) 5682 | -9/Mines | Learned Materials stockpile data 5709 | -9/Mines | A Derelict revealed a hidden shortcut to a safe place 6013 | -9/Mines | Met a Derelict shopkeep closing up shop 6127 | -9/Mines | Deemed a non-threat by the Exiles lab entrance 6127 | -9/Mines | Discovered new exit (range 5) 6268 | -9/Mines | Assisted by bots powering up and referring to "LRC-V3" 6956 | -9/Mines | Entered Exiles 6956 | -9/Exiles | Accompanied by 3 allies 6994 | -9/Exiles | Discovered new exit (range 15) 7023 | -9/Exiles | Met 8R-AWN 7060 | -9/Exiles | Met EX-HEX 7134 | -9/Exiles | Met EX-BIN 7176 | -9/Exiles | Aligned with FarCom system 7179 | -9/Exiles | Given EX-Vault access code 7238 | -9/Exiles | Opened EX-Vault 7254 | -9/Exiles | Found Firepult 7309 | -9/Exiles | Warned to stay clear of 0b10 Research branches 7378 | -9/Exiles | Met EX-DEC 7391 | -9/Exiles | Learned location of Zion (-7) 7673 | -9/Exiles | Discovered new exit (range 10) 7698 | -9/Exiles | Left Exiles lab with Firepult 7698 | -9/Exiles | Entered Mines 7698 | -8/Mines | Accompanied by 3 allies 7862 | -8/Mines | Discovered new exit (range 12) 8077 | -8/Mines | Lost 3 allies 8444 | -8/Mines | Discovered new exit (range 9) 8822 | -8/Mines | Entered Materials 8822 | -8/Materials | Evolved 2 slots: Utility x2 9542 | -8/Materials | Garrison activated, responded to threat 9621 | -8/Materials | Identified exit to Garrison 9697 | -8/Materials | Entered Garrison 9763 | -8/Garrison | Triggered checkpoint 9833 | -8/Garrison | Lost 3 parts (2n1w) 9986 | -8/Garrison | Build established: Scavenger-Mutant 10018 | -8/Garrison | Triggered checkpoint 10045 | -8/Garrison | Triggered checkpoint 10049 | -8/Garrison | Triggered checkpoint 10369 | -8/Garrison | Discovered new exit (range 9) 10495 | -8/Garrison | Triggered checkpoint 10683 | -8/Garrison | Triggered checkpoint 11107 | -8/Garrison | Triggered checkpoint 11158 | -8/Garrison | Rescued a captive Derelict 11189 | -8/Garrison | Discovered new exit (range 13) 11559 | -8/Garrison | Lost 3 parts (3n) 11672 | -8/Garrison | Entered Materials 11870 | -8/Materials | Build established: Mutant 12068 | -8/Materials | Identified exit to Storage 12072 | -8/Materials | First assault squad dispatched 12267 | -8/Materials | Entered Storage 12652 | -8/Storage | Build established: Scavenger-Mutant 12667 | -8/Storage | First assault squad dispatched 12798 | -8/Storage | Destroyed 12 combat bots 12859 | -8/Storage | Core integrity fell below 50% 13260 | -8/Storage | Identified exit to Factory 13425 | -8/Storage | Entered Factory 13425 | -7/Factory | Evolved 2 slots: Utility x2 13863 | -7/Factory | Build established: Scavenger-Assassin 14098 | -7/Factory | Repaired Broken Hvy. Treads? 14368 | -7/Factory | Discovered new exit (range 9) 14389 | -7/Factory | Identified exit to Factory 15920 | -7/Factory | Build established: Assassin 16186 | -7/Factory | Discovered exit to Factory (range 15) 16264 | -7/Factory | Identified exit to Lower Caves 16384 | -7/Factory | Fabricated Imp. Medium Treads? 17043 | -7/Factory | Entered Lower Caves 17044 | -7/Lower Caves | Encountered a Warlord checkpoint 17350 | -7/Lower Caves | Attracted the attention of an 0b10 outpost 17361 | -7/Lower Caves | Build established: Mutant 17465 | -7/Lower Caves | Met a Warlord Commander 17466 | -7/Lower Caves | Learned location of Warlord (-5) 17467 | -7/Lower Caves | Warlord Commander delivered Encrypted Comm Array 17480 | -7/Lower Caves | Found Encrypted Comm Array 17672 | -7/Lower Caves | Learned Factory security intel 18409 | -7/Lower Caves | Discovered new exit (range 14) 19075 | -7/Lower Caves | Entered another Lower Caves area 19075 | -7/Lower Caves | Accompanied by 2 allies 19075 | -7/Lower Caves | Discovered exit to Factory (range 16) 19670 | -7/Lower Caves | Encountered a Warlord checkpoint 20296 | -7/Lower Caves | Discovered new exit (range 6) 20311 | -7/Lower Caves | Entered Zion 20311 | -7/Zion | Accompanied by 1 ally 20372 | -7/Zion | System corruption cleaned by Quarantine Array 20487 | -7/Zion | Discovered new exit (range 14) 20737 | -7/Zion | Acquired unknown access codes intercepted by a Zionite 20758 | -7/Zion | Learned Factory scanalyzer intel 21092 | -7/Zion | Given the Hacking Drone Bay 21118 | -7/Zion | Found Prototype Device 21175 | -7/Zion | Given A8's code to call for help 21302 | -7/Zion | Identified Hacking Drone Bay 21589 | -7/Zion | Enhanced Grunt warped into view, answering call for help 21591 | -7/Zion | Enhanced Grunt warped into view, answering call for help 21595 | -7/Zion | Opened final containment barrier to the Deep Caves 21625 | -7/Zion | Discovered new exit (range 3) 21625 | -7/Zion | Saw the warning signs outside the Deep Caves entrance 21630 | -7/Zion | Entered Deep Caves 21630 | -7/Deep Caves | Accompanied by 3 allies 21965 | -7/Deep Caves | Attacked by Z-Imprinter 21985 | -7/Deep Caves | Allies destroyed Z-Imprinter 22011 | -7/Deep Caves | Found Prototype Protection 22011 | -7/Deep Caves | Identified Zio. Weapon Casing 22060 | -7/Deep Caves | Z-Facility disabled 22911 | -7/Deep Caves | Discovered new exit (range 6) 23759 | -7/Deep Caves | Core integrity fell below 50% 23760 | -7/Deep Caves | Destroyed AG-15718 23927 | -7/Deep Caves | Spotted AG-79722 23944 | -7/Deep Caves | Destroyed AG-79722 23953 | -7/Deep Caves | Found Cloak of Protection 23957 | -7/Deep Caves | Found Prototype Device 23957 | -7/Deep Caves | Identified Exp. Thermal Shield 24181 | -7/Deep Caves | Triggered Deep Caves wall 24181 | -7/Deep Caves | Spotted AS-33022 24181 | -7/Deep Caves | Spotted AS-43668 24206 | -7/Deep Caves | Destroyed AS-33022 24232 | -7/Deep Caves | Exposed GOLEM chamber 24235 | -7/Deep Caves | Destroyed AS-43668 24246 | -7/Deep Caves | Destroyed 39 combat bots 24294 | -7/Deep Caves | Found GOLEM Unit 24683 | -7/Deep Caves | Build established: Scavenger-Mutant 24686 | -7/Deep Caves | Found GOLEM Unit 24692 | -7/Deep Caves | Found GOLEM Unit 24795 | -7/Deep Caves | Entered Proximity Caves 25078 | -6/Proximity Caves | Spotted B-75 Beast 25185 | -6/Proximity Caves | Core integrity fell below 20% 25273 | -6/Proximity Caves | Build established: Golem 25566 | -6/Proximity Caves | Discovered exit to Factory (range 5) 25686 | -6/Proximity Caves | Entered Factory 25686 | -6/Factory | Evolved 2 slots: Power x1, Utility x1 25688 | -6/Factory | Loaded intel: 4 scanalyzer locations 25745 | -6/Factory | Build established: Scavenger-Golem 26483 | -6/Factory | Discovered new exit (range 6) 26503 | -6/Factory | Identified exit to Factory 26532 | -6/Factory | Discovered new exit (range 12) 26724 | -6/Factory | Identified exit to Lower Caves 26898 | -6/Factory | Discovered exit to Factory (range 16) 27518 | -6/Factory | Discovered exit to Factory (range 7) 27559 | -6/Factory | Cargo convoy interrupted 27656 | -6/Factory | Repaired Imp. Heavy Armor Plating 27707 | -6/Factory | Repaired Lyr. Medium Armor Plating 27928 | -6/Factory | Found Prototype Launcher 27928 | -6/Factory | Identified Rocket Array 28378 | -6/Factory | P-60 Hacker assimilated allied Technician 5b 28638 | -6/Factory | Fabricated Lrn. Terrain Scanner? 29034 | -6/Factory | Fabricated Enh. Flexi-carbon Leg (x1) 29186 | -6/Factory | First assault squad dispatched 30167 | -6/Factory | Entered Lower Caves 30850 | -6/Lower Caves | Learned Factory stockpile data 30934 | -6/Lower Caves | Build established: Golem 31317 | -6/Lower Caves | Learned 4 Factory zone layouts 31560 | -6/Lower Caves | Attracted the attention of an 0b10 checkpoint 32122 | -6/Lower Caves | Discovered new exit (range 5) 32135 | -6/Lower Caves | Entered another Lower Caves area 32323 | -6/Lower Caves | Discovered exit to Factory (range 5) 32606 | -6/Lower Caves | Attracted the attention of an 0b10 base 32870 | -6/Lower Caves | Attracted the attention of an 0b10 checkpoint 33429 | -6/Lower Caves | Learned 4 Factory zone layouts 33577 | -6/Lower Caves | Spotted B-75 Beast 33616 | -6/Lower Caves | Destroyed B-75 Beast 33973 | -6/Lower Caves | Discovered new exit (range 8) 34013 | -6/Lower Caves | Encountered a Warlord checkpoint 34168 | -6/Lower Caves | Entered Data Miner 34168 | -6/Data Miner | Discovered new exit (range 6) 34204 | -6/Data Miner | Met Data Miner 34241 | -6/Data Miner | Learned location of Section 7 (-2) 34241 | -6/Data Miner | Acquired the access code to Warlord's prototype stash 34272 | -6/Data Miner | Received God Mode back door access code from Data Miner 34430 | -6/Data Miner | Entered Proximity Caves 34495 | -5/Proximity Caves | Learned Factory stockpile data 34601 | -5/Proximity Caves | Received a Behemoth hack from an annoying Tinkerer 35203 | -5/Proximity Caves | Encountered a Derelict sapper outpost 35750 | -5/Proximity Caves | Attracted the attention of an 0b10 base 35810 | -5/Proximity Caves | Destroyed 7 combat bots 35834 | -5/Proximity Caves | Learned Extension terminal intel 35834 | -5/Proximity Caves | Learned Armory stockpile data 35834 | -5/Proximity Caves | Learned Armory trap positions 36125 | -5/Proximity Caves | Discovered exit to Factory (range 4) 37091 | -5/Proximity Caves | Entered Factory 37091 | -5/Factory | Evolved 2 slots: Utility x2 37092 | -5/Factory | Identified exit to Upper Caves 37374 | -5/Factory | Discovered new exit (range 13) 37570 | -5/Factory | Repaired Enh. Flexi-carbon Leg 37846 | -5/Factory | Identified exit to Factory 38381 | -5/Factory | Discovered exit to Upper Caves (range 18) 38621 | -5/Factory | System corruption reached 10% 39328 | -5/Factory | Repaired Enh. Flexi-carbon Leg 39418 | -5/Factory | Repaired Enh. Flexi-carbon Leg 39750 | -5/Factory | Entered Upper Caves 40412 | -5/Upper Caves | Attracted the attention of an 0b10 base 40412 | -5/Upper Caves | Learned Armory garrison access intel 40412 | -5/Upper Caves | Learned Research emergency access door positions 40412 | -5/Upper Caves | Learned 6 Lower Caves zone layouts 40412 | -5/Upper Caves | Learned location of 2 exits from Lower Caves 40468 | -5/Upper Caves | Destroyed 13 combat bots 42008 | -5/Upper Caves | Discovered new exit (range 21) 42088 | -5/Upper Caves | Entered another Upper Caves area 42138 | -5/Upper Caves | Discovered exit to Factory (range 8) 42254 | -5/Upper Caves | Encountered a Warlord checkpoint 42592 | -5/Upper Caves | Attracted the attention of an 0b10 checkpoint 43242 | -5/Upper Caves | Learned Factory garrison access intel 43527 | -5/Upper Caves | Attracted the attention of an 0b10 outpost 43593 | -5/Upper Caves | Destroyed 7 combat bots 43601 | -5/Upper Caves | Discovered new exit (range 19) 43861 | -5/Upper Caves | Entered Warlord 43861 | -5/Warlord | Accompanied by 2 allies 43913 | -5/Warlord | Discovered new exit (range 9) 44242 | -5/Warlord | Met Warlord 44259 | -5/Warlord | Opened Warlord's prototype stash 44267 | -5/Warlord | Warlord's base attacked by MAIN.C 44268 | -5/Warlord | Found Prototype Reactor 44276 | -5/Warlord | Found Prototype Processor 44276 | -5/Warlord | Identified Exp. Armor Integrity Analyzer 44523 | -5/Warlord | Found Prototype Device 44523 | -5/Warlord | Identified Minesniffer Drone Bay 44617 | -5/Warlord | Warlord forces counterattacked 44808 | -5/Warlord | Lost 4 allies 44861 | -5/Warlord | Spotted Executioner 44863 | -5/Warlord | Spotted Striker 44890 | -5/Warlord | Spotted Striker 44903 | -5/Warlord | Core integrity fell below 50% 44905 | -5/Warlord | Destroyed Striker 44932 | -5/Warlord | Destroyed Executioner 44942 | -5/Warlord | Warlord base infiltrated, sounded retreat 44960 | -5/Warlord | Lost 3 parts (2u1w) 44965 | -5/Warlord | Destroyed Striker 45059 | -5/Warlord | Spotted Executioner 45089 | -5/Warlord | Identified Vortex Chain Reactor 45090 | -5/Warlord | Destroyed Executioner 45125 | -5/Warlord | Lost 3 parts (1p2u) 45136 | -5/Warlord | Found Corrupted Prototype Device 45139 | -5/Warlord | Found Corrupted Prototype Processor 45152 | -5/Warlord | Spotted B-86 Titan 45162 | -5/Warlord | Spotted Striker 45162 | -5/Warlord | Spotted B-75 Beast 45174 | -5/Warlord | Entered Proximity Caves 45788 | -4/Proximity Caves | Spotter reported a threat 46439 | -4/Proximity Caves | Discovered exit to Factory (range 5) 47286 | -4/Proximity Caves | Identified Adv. Kinecellerator 47288 | -4/Proximity Caves | Identified Exp. Core Analyzer 47290 | -4/Proximity Caves | Entered Factory 47290 | -4/Factory | Evolved 2 slots: Utility x2 47292 | -4/Factory | Loaded intel: 4 garrison access locations 47374 | -4/Factory | Identified exit to Upper Caves 47374 | -4/Factory | Identified exit to Extension 47592 | -4/Factory | Build established: Hacker-Golem 48903 | -4/Factory | Repaired Broken Enh. Biometal Leg 49130 | -4/Factory | Fabricated Centrium Leg (x1) 49348 | -4/Factory | Discovered new exit (range 13) 49621 | -4/Factory | Fabricated Prc. Energy Filter? 49790 | -4/Factory | First assault squad dispatched 49891 | -4/Factory | Destroyed 10 combat bots 50128 | -4/Factory | Build established: Golem 50360 | -4/Factory | Fabricated Imp. Utility Shielding? 50488 | -4/Factory | Entered Extension 50489 | -4/Extension | Loaded intel: 11 terminal locations 50661 | -4/Extension | Energy Cycler disabled 50661 | -4/Extension | Rescued a captive Derelict 50661 | -4/Extension | Rescued a captive Derelict 50662 | -4/Extension | Rescued a captive Derelict 50676 | -4/Extension | Rescued a captive Derelict 50691 | -4/Extension | Rescued a captive Derelict 50738 | -4/Extension | First assault squad dispatched 51249 | -4/Extension | Build established: Commander-Golem 51648 | -4/Extension | Build established: Commander-Mutant 51957 | -4/Extension | Lost 4 allies 52085 | -4/Extension | Lost 5 allies 52160 | -4/Extension | Lost 5 allies 52162 | -4/Extension | Destroyed 10 combat bots 52254 | -4/Extension | Discovered new exit (range 14) 52313 | -4/Extension | Disrupted transfer network 52354 | -4/Extension | Destroyed 14 combat bots 52413 | -4/Extension | Build established: Mutant 52603 | -4/Extension | Lost 4 allies 52680 | -4/Extension | Extracted ID and sensor layout for unrecognized location from A7's data core 52732 | -4/Extension | Discovered new exit (range 10) 52734 | -4/Extension | Discovered new exit (range 6) 52745 | -4/Extension | Entered Cetus 52776 | -4/Cetus | Destroyed Cetus Guard 52777 | -4/Cetus | Destroyed Cetus Guard 52778 | -4/Cetus | Spotted Cetus Guard 52781 | -4/Cetus | Destroyed Cetus Guard 52785 | -4/Cetus | Destroyed Cetus Guard 52968 | -4/Cetus | Discovered new exit (range 15) 53007 | -4/Cetus | Spotted Cetus Guard 53009 | -4/Cetus | Destroyed Cetus Guard 53011 | -4/Cetus | Spotted Cetus Guard 53011 | -4/Cetus | Spotted Cetus Guard 53012 | -4/Cetus | Spotted Cetus Guard 53018 | -4/Cetus | Destroyed Cetus Guard 53022 | -4/Cetus | Destroyed Cetus Guard 53024 | -4/Cetus | Destroyed Cetus Guard 53044 | -4/Cetus | Discovered new exit (range 15) 53052 | -4/Cetus | Met Revision 17 53105 | -4/Cetus | Build established: Scavenger-Mutant 53152 | -4/Cetus | Entered Archives 53345 | -4/Archives | Discovered new exit (range 15) 53412 | -4/Archives | Discovered new exit (range 14) 53445 | -4/Archives | Discovered new exit (range 15) 53884 | -4/Archives | Build established: Scavenger-Skirmisher 60743 | -4/Archives | Entered Hub_04(d) 60879 | -4/Hub_04(d) | Discovered new exit (range 24) 60914 | -4/Hub_04(d) | Discovered new exit (range 13) 61030 | -4/Hub_04(d) | Discovered new exit (range 23) 61287 | -4/Hub_04(d) | Network Hub disabled 61341 | -4/Hub_04(d) | System corruption reached 10% 61342 | -4/Hub_04(d) | Entered Research 61342 | -3/Research | Evolved 2 slots: Propulsion x2 61542 | -3/Research | Revision forces began assault on 0b10 61620 | -3/Research | Met up with Revision 17++ 61887 | -3/Research | Identified exit to Armory 61887 | -3/Research | Identified exit to Testing 62042 | -3/Research | Research terminal network offline 62166 | -3/Research | Spotted Striker 62167 | -3/Research | Spotted Striker 62185 | -3/Research | Destroyed Striker 62239 | -3/Research | Found Prototype Processor 62239 | -3/Research | Identified Exp. Signal Interpreter 62243 | -3/Research | Found Exp. Signal Interpreter 62513 | -3/Research | Fabricated Quantum Capacitor? 62854 | -3/Research | Build established: Mutant 63039 | -3/Research | Entered Armory 63040 | -3/Armory | Met VL-GR5, who suggested a friendly competition 63040 | -3/Armory | Loaded intel: 45 trap records 63737 | -3/Armory | Found Prototype Launcher 63737 | -3/Armory | Identified Hellfire Missile Launcher 63850 | -3/Armory | Discovered new exit (range 2) 63856 | -3/Armory | Entered Lab 63856 | -3/Lab | Discovered new exit (range 9) 63874 | -3/Lab | Hidden lab's door opened automatically 63874 | -3/Lab | Sensor layout match revealed 63875 | -3/Lab | Gained access to the hidden lab's interior 63875 | -3/Lab | Unable to decrypt terminal 63881 | -3/Lab | Unable to decrypt terminal 63921 | -3/Lab | Found Alien Artifact 63943 | -3/Lab | Found Alien Artifact 63952 | -3/Lab | Found Alien Artifact 63952 | -3/Lab | Identified Integrated Mediator 63952 | -3/Lab | Installed Integrated Mediator, increased core attachment efficiency 63967 | -3/Lab | Found Alien Artifact 63967 | -3/Lab | Identified Core Regenerator 63967 | -3/Lab | Used Core Regenerator, restored core integrity (+3) 64029 | -3/Lab | Found Prototype Hackware 64033 | -3/Lab | Found Prototype Protection 64033 | -3/Lab | Identified Exp. Powered Armor 64043 | -3/Lab | Found Prototype Energy Gun 64043 | -3/Lab | Identified Hyp. EM Gauss Rifle 64051 | -3/Lab | Found Prototype Energy Cannon 64051 | -3/Lab | Identified Warp Cannon 64084 | -3/Lab | Unable to decrypt terminal 64091 | -3/Lab | Identified Deep Network Scanner 64133 | -3/Lab | Found Prototype Special Weapon 64163 | -3/Lab | Identified Gui. Remote Datajack 64166 | -3/Lab | Entered Research 64166 | -2/Research | Evolved 2 slots: Power x1, Utility x1 64557 | -2/Research | Build established: Hacker-Skirmisher 65117 | -2/Research | Discovered new exit (range 22) 65139 | -2/Research | Discovered new exit (range 24) 65194 | -2/Research | Identified exit to Access 66012 | -2/Research | Build established: Hacker-Mutant 66051 | -2/Research | Spotted B-90 Cyclops 66052 | -2/Research | Befriended a Behemoth using the annoying Tinkerer's hack 66218 | -2/Research | Entered Access 66218 | -1/Access | Evolved 2 slots: Weapon x2 66521 | -1/Access | Build established: Hacker-Skirmisher 66947 | -1/Access | Found Imp. Powered Armor 66950 | -1/Access | Found Imp. Powered Armor 67423 | -1/Access | Befriended a Behemoth using the annoying Tinkerer's hack 67577 | -1/Access | Destroyed B-99 Colossus 67581 | -1/Access | Found Corrupted Multirail 67942 | -1/Access | Fabricated Imp. Utility Shielding (x2) 68144 | -1/Access | System corruption reached 10% 68360 | -1/Access | Discovered new exit (range 24) 68655 | -1/Access | Spotted B-99 Colossus 68718 | -1/Access | First assault squad dispatched 68867 | -1/Access | Found Prototype Hackware 68867 | -1/Access | Identified Exp. System Shield 69123 | -1/Access | Spotted B-99 Colossus 69130 | -1/Access | Destroyed B-99 Colossus 69137 | -1/Access | Build established: Hacker-Gunner 69140 | -1/Access | Destroyed B-99 Colossus 69172 | -1/Access | Found Multirail 69199 | -1/Access | Found Multirail 69437 | -1/Access | Identified exit to Command 69548 | -1/Access | Destroyed 7 combat bots 69765 | -1/Access | Spotted B-99 Colossus 69766 | -1/Access | Destroyed B-99 Colossus 69819 | -1/Access | Spotted B-99 Colossus 69838 | -1/Access | Destroyed B-99 Colossus 69876 | -1/Access | Entered Command 70170 | -1/Command | First assault squad dispatched 70190 | -1/Command | Destroyed 9 combat bots 70292 | -1/Command | Destroyed 11 combat bots 70415 | -1/Command | Disengaged cave seal 70729 | -1/Command | High security lockdown imminent 70771 | -1/Command | Destroyed 17 combat bots 70796 | -1/Command | Spotted Combat Programmer 70797 | -1/Command | Spotted M Guard 70797 | -1/Command | Destroyed M Guard 70797 | -1/Command | Destroyed M Guard 70798 | -1/Command | Spotted Combat Programmer 70799 | -1/Command | Destroyed Combat Programmer 70800 | -1/Command | Destroyed Combat Programmer 70800 | -1/Command | All MAIN.C guards destroyed 70809 | -1/Command | High security lockdown engaged 70943 | -1/Command | Destroyed 18 combat bots 71023 | -1/Command | Scanned by Researcher 71025 | -1/Command | Spotted Executioner 71027 | -1/Command | Destroyed Striker 71028 | -1/Command | Destroyed Striker 71031 | -1/Command | Destroyed Investigator 71032 | -1/Command | Destroyed Executioner 71049 | -1/Command | Build established: Hacker-Tank 71055 | -1/Command | Destroyed 17 combat bots 71113 | -1/Command | Met MAIN.C 71116 | -1/Command | 0b10 Conduit disabled 71129 | -1/Command | Destroyed MAIN.C Shell 71130 | -1/Command | MAIN.C activated Command garrisons 71138 | -1/Command | Spotted Striker 71139 | -1/Command | Destroyed Striker 71163 | -1/Command | Spotted Executioner 71175 | -1/Command | System corruption reached 30% 71199 | -1/Command | Spotted Executioner 71202 | -1/Command | Core integrity fell below 50% 71209 | -1/Command | Identified Transdimensional Reconstructor 71209 | -1/Command | Failed to warp due to unstable space 71210 | -1/Command | Core integrity fell below 20% 71213 | -1/Command | Destroyed by MAIN.C with Improved Heavy Machine Gun Last Messages --------------- 71200_ Penetrated by Slug. 71201_ Adv. Transmission Jammer destroyed. 71201_ Rnf. Quantum Reactor destroyed. 71202_ P-80 Master resets G-73 Enforcer, system corruption cleaned. 71203_ M-36 Artificer fits Backup Laser VII on E-15 Imp. 71203_ P-80 Master resets P-80 Master, system corruption cleaned. 71203_ Exp. Coolant Injector destroyed. 71204_ P-80 Master resets G-73 Enforcer, system corruption cleaned. 71206_ 7OPFFQFTZZY:V9O,QOQOZPJIBI VDFP 71206_ Neutron Missile Launcher destroyed. 71206_ Penetrated by Slug. 71207_ Exp. Energy Well destroyed. 71208_ Overheating: Matter decay (-57). 71208_ Firepult destroyed. 71209_ Penetrated by Slug. 71209_ Identified Transdimensional Reconstructor. 71209_ Warp failed due to unstable space. 71210_ Adv. Weapon Cycler destroyed. 71211_ P-80 Master resets G-73 Enforcer, system corruption cleaned. 71212_ Penetrated by Slug. Map ----- +----------------------------------------------------+ | ?????????????????????????????????????????????????? | | ?????????????????????????????????????????????????? | | ?????????????????????????????????????????????????? | | ?????????????????????????????????????????????????? | | ?????????????????????????????????????????????????? | | ?????????????????????????????????????????????????? | | ?????????????????????????????????????????????????? | | ?????????????????????????????????????????????????? | | ?????????????????????????????????????????????????? | | ?????????????????????????????????????????????????? | | ?????????????????????????????????????????????????? | | ?????????????????????????????????????????????????? | | ?????????????????????????????????????????????????? | | ?????????????????????????????????????????????????? | | ?????????????????????????????????????????????????? | | ?????????????????????????????????????????????????? | | ?????????????????????????????????????????????????? | | ?????????????????????????????????????????????????? | | ?????????????????????????????????????????????????? | | ?????????????##############??????????????????????? | | ????????????? " #??????????????????????? | | ??????????????"" #??????????????????????? | | ??????????? "" %%#######################? | | ????????????"" /pxpggbghp #? | | ???????????? " |ggggggeEb % x #? | | ????????????"" @hE%hihbpmm !% #? | | ???????????" ################### "#? | | ???????????" #?????????????????# ""?? | | ??????????? ]=! #?????????????????# "## | | ??????????? !%! ""#?????????????????# # | | ???????????? = """"#?????????????????# + ## | | ???????????? M """""#?????????????????#= | | ???????????? """"""#?????????????????# % | | ????????????? "? ?" #?????????????????# ! | | ????????????? ?????????????????????????# | | ?????????????? ??????????????????????????# | | ?????????????? ???????????????????????????# # | | ????????????????????????????????????????????###### | | ?????????????????????????????????????????????????? | | ?????????????????????????????????????????????????? | | ?????????????????????????????????????????????????? | | ?????????????????????????????????????????????????? | | ?????????????????????????????????????????????????? | | ?????????????????????????????????????????????????? | | ?????????????????????????????????????????????????? | | ?????????????????????????????????????????????????? | | ?????????????????????????????????????????????????? | | ?????????????????????????????????????????????????? | | ?????????????????????????????????????????????????? | | ?????????????????????????????????????????????????? | +----------------------------------------------------+ Best States ------------- Heat Dissipation 114 Coolant Potential 240 Energy Generation 79 Energy Capacity 1700 Matter Stores 300 Matter Capacity 300 Sight Range 22 Robot Scan Range 16 Terrain Scan Range 24 Terrain Scan Density 210 Jamming Range 16 Cloak Strength 3 Additional Mass Support 20 EM Shielding 3 Corruption Block 12 Armor Coverage 2000 Resistance: KI 30 Resistance: TH 30 Resistance: EX 15 Resistance: EM 15 Resistance: I 15 Resistance: S 15 Resistance: P 15 Utility Shielding 66 Weapon Shielding 100 Weapon Cycling 25 Phase Shifting 8 Evasion (%) 55 Targeting Accuracy 16 Core Analysis 8 Armor Integrity Analysis 30 Recoil Reduction 6 Energy Filtering 50 Particle Charging 25 Kinecelleration 50 Offensive Hacking 37 Defensive Hacking 14 Authchip Count 1 Item Schematics ----------------- Imp. Medium Treads | -7/Factory | Hacked Gauss Cannon | -7/Zion | Archive Imp. Target Analyzer | -7/Zion | Archive Imp. Particle Charger | -7/Zion | Archive Adv. Terrain Scan Processor | -7/Zion | Archive Hrd. Heavy Armor Plating | -7/Zion | Archive Variable Charge Gun | -7/Zion | Archive Imp. Actuator Array | -7/Zion | Archive Great Axe | -7/Zion | Archive Gauss Rifle | -7/Zion | Archive EM Disruption Field | -7/Zion | Archive Imp. Field Recycling Unit | -7/Zion | Archive Plasma Rifle | -7/Zion | Archive Imp. Cooling System | -7/Zion | Archive KE Penetrator | -7/Zion | Archive Lrn. Tractor Beam | -6/Factory | Hacked Lrn. Terrain Scanner | -6/Factory | Hacked Quantum Capacitor | -6/Factory | Hacked Enh. Flexi-carbon Leg | -6/Factory | Scanalyzed Combat Drone Bay | -6/Data Miner | Free Lgt. Regenerative Plating | -6/Data Miner | Free Enh. Armored Leg | -6/Data Miner | Free Prc. Energy Filter | -6/Data Miner | Free Hvy. Proton Cannon | -6/Data Miner | Free Imp. Heavy Treads | -6/Data Miner | Free Nanoactuators | -6/Data Miner | Free HERF Cannon | -6/Data Miner | Free Adv. Coolant Injector | -6/Data Miner | Free Q-thruster | -6/Data Miner | Free Imp. Utility Shielding | -5/Factory | Scanalyzed Centrium Heavy Treads | -3/Research | Scanalyzed Adv. Heavy Siege Treads | -2/Research | Scanalyzed Adv. Weapon Cycler | -1/Access | Hacked Robot Schematics ------------------ G-47 Trooper | -7/Zion | Archive L-41 Fighter | -7/Zion | Archive R-06 Scavenger | -7/Zion | Archive D-83 Annihilator | -7/Zion | Archive G-50 Soldier | -6/Data Miner | Free M-22 Extractor | -6/Data Miner | Free E-15 Imp | -6/Data Miner | Free R-10 Processor | -6/Data Miner | Free Fabricated ------------ Imp. Medium Treads | x2 | -7/Factory Lrn. Terrain Scanner | x1 | -6/Factory Enh. Flexi-carbon Leg | x1 | -6/Factory Centrium Leg | x1 | -4/Factory | Preloaded Prc. Energy Filter | x1 | -4/Factory Imp. Utility Shielding | x2 | -4/Factory Quantum Capacitor | x2 | -3/Research Imp. Utility Shielding | x2 | -1/Access Alien Tech Used ----------------- Integrated Mediator Core Regenerator Transdimensional Reconstructor Achievements -------------- Left-hand Path Woof! Challenges ------------ None Game ------ Seed TargetingDimensionalMapper Manual? 0 Play Time 11:08:26 Cumulative 229.5 hours Start 2024.04.26 @ 22:22:15 End 2024.04.28 @ 21:10:05 Sessions 5 Manual Loads 0 Difficulty Rogue Special Mode None Game No. 84 Rogue 82 Adventurer 2 Explorer 0 Win Type - Total 5 Types 4/0/0/1/0/0/0/0/0 Lore% 73 Gallery% 80 Achievement% 68 Wizard Run 0 Options --------- Layout 0 ASCII 0 Keyboard 0 Movement Numpad Keybinds 0 Fullscreen 2 Font 24/Smallcaps Map View 76x50 Zoom Use 0% Tactical HUD 1 Map Filters NONE Filters NONE Steam 1 RUN: 232b7678-d82d-4956-8943-e4407ec10195